Workbook

Sheet Navigation
K7: Khandelwal Krushi Kendra
L8: Stock and Sales FOR THE PERIOD 01-Apr-2021 TO 31-Jul-2021

Sheet Dealer Report
A1: Khandelwal Krushi Kendra 2021-22
A2: Malkapur Road Bodwad
A3: Tal. Bodwad Dist. Jalgaon
A4: Bayer
A5: Stock Category Summary
A6: 1-Apr-21 to 31-Jul-21
B7: Bayer
B8: Khandelwal Krushi Kendra 2021-22
A9: Particulars | B9: 1-Apr-21 to 31-Jul-21
B10: Opening Balance | C10: Inwards | D10: Outwards | E10: Closing Balance
B11: Quantity | C11: Quantity | D11: Quantity | E11: Quantity
A12: 7517- BG II(Superb) Bayer- 475 GM | C12: 400 | D12: 195 | E12: 205
A13: ADMIRE 150 GMS | B13: 23 | C13: 60 | D13: 30 | E13: 53
A14: ADMIRE 30 GMS | B14: 119 | D14: 12 | E14: 107
A15: ADMIRE 75 GMS | B15: 39 | C15: 120 | D15: 30 | E15: 129
A16: AMBITION-1 LTR | B16: 175 | D16: 8 | E16: 167
A17: AMBITION-250 ML | B17: 143 | D17: 21 | E17: 122
A18: AMBITION-500 ML | B18: 296 | D18: 27 | E18: 269
A19: ANTRACOL 1 KG(10 NOS) | B19: 10 | C19: 200 | D19: 80 | E19: 130
A20: ANTRACOL 250 GMS(40 NOS) | B20: 155 | C20: 80 | D20: 107 | E20: 128
A21: ANTRACOL 500 GMS(20 NOS) | B21: 10 | C21: 500 | D21: 212 | E21: 298
A22: BELT EXPERT 100 ML | B22: 10 | C22: 50 | D22: 5 | E22: 55
A23: BUONOS-250 ML | B23: 34 | D23: 18 | E23: 16
A24: BUONOS-500 ML | C24: 20 | E24: 20
A25: CONFIDOR 100 ML(50 NOS) | B25: 35 | C25: 1250 | D25: 1062 | E25: 223
A26: CONFIDOR 250 ML (20 NOS) | B26: 75 | C26: 500 | D26: 475 | E26: 100
A27: CONFIDOR 50 ML | B27: 29 | C27: 1000 | D27: 624 | E27: 405
A28: CONFIDOR SUPER 100 ML(50 NOS) | B28: 12 | C28: 1000 | D28: 687 | E28: 325
A29: CONFIDOR SUPER 250 ML(20 NOS) | B29: 53 | C29: 400 | D29: 267 | E29: 186
A30: CONFIDOR SUPER 50 ML(50 NOS) | B30: 12 | C30: 650 | D30: 603 | E30: 59
A31: DECIS 100 BAYER 100 ML | B31: 14 | E31: 14
A32: DECIS-100 BAYER 250 ML | B32: 16 | E32: 16
A33: EVICENT-24 GM | C33: 50 | E33: 50
A34: FAME 100 ML | B34: 15 | E34: 15
A35: FAME 10 ML | B35: 100 | D35: 8 | E35: 92
A36: FAME 50 ML | B36: 6 | D36: 1 | E36: 5
A37: FENOS QUICK-100 ML | C37: 300 | E37: 300
A38: FENOS QUICK-250 ML | C38: 80 | D38: 2 | E38: 78
A39: Fenus Quick-100ml | B39: 34 | D39: 9 | E39: 25
A40: Firstclass-7149 Bayer-475GM | C40: 126 | D40: 116 | E40: 10
A41: FOOST 500 GM | B41: 17 | C41: 240 | D41: 93 | E41: 164
A42: INFINITO-100 ML | B42: 6 | D42: 1 | E42: 5
A43: INFINITO-500 ML | B43: 16 | D43: 1 | E43: 15
A44: JUMP 2GM | B44: 1249 | D44: 476 | E44: 773
A45: JUMP 40 GMS | B45: 29 | C45: 80 | D45: 10 | E45: 99
A46: LARVIN 100 GMS
A47: LARVIN 250 GMS | B47: 2 | E47: 2
A48: LARVIN 500 GMS | B48: 39 | D48: 3 | E48: 36
A49: LAUDIS 115 MLS(08 NOS) | C49: 480 | D49: 233 | E49: 247
A50: LAUDIS 57.5 ML | C50: 10 | D50: 4 | E50: 6
A51: MOVENTO ENERGY SC240_100 ML | B51: 7 | E51: 7
A52: MOVENTO ENERGY SC240_1 LTR | B52: 30 | E52: 30
A53: MOVENTO ENERGY SC240_250 ML | B53: 14 | D53: 10 | E53: 4
A54: NATIVO 100 GMS | B54: 68 | C54: 50 | D54: 27 | E54: 91
A55: NATIVO 250 GMS | B55: 29 | D55: 10 | E55: 19
A56: NATIVO 50 GMS | B56: 51 | D56: 5 | E56: 46
A57: OBERON 100 ML | B57: 20 | D57: 16 | E57: 4
A58: OBERON 200 ML | B58: 24 | D58: 3 | E58: 21
A59: OBERON 500 ML | B59: 13 | D59: 9 | E59: 4
A60: PLANOFIX 100 ML(50 NOS) | B60: 37 | C60: 250 | D60: 27 | E60: 260
A61: PLANOFIX 250 ML(40 NOS) | B61: 35 | C61: 200 | D61: 6 | E61: 229
A62: REGENT SC 1 KG/LTR(10 NOS) | B62: 32 | C62: 250 | D62: 36 | E62: 246
A63: REGENT SC 250 GMS/ML | B63: 13 | C63: 100 | D63: 46 | E63: 67
A64: REGENT SC 500 GMS/ML(20 NOS) | B64: 12 | C64: 300 | D64: 56 | E64: 256
A65: SOLOMAN 100 ML | B65: 29 | C65: 300 | D65: 21 | E65: 308
A66: SOLOMAN 250 ML | B66: 42 | C66: 600 | D66: 228 | E66: 414
A67: SOLOMAN 500 ML | C67: 300 | D67: 165 | E67: 135
A68: WHIPSUPER(T) EC90_100 ML | B68: 30 | D68: 25 | E68: 5
A69: WHIPSUPER(T) EC90_1 LTR | B69: 7 | E69: 7
A70: Grand Total | B70: 3266 | C70: 9946 | D70: 6110 | E70: 7102

Sheet Dealer Report working
A1: Particulars | B1: Opening Qty | C1: Purchase Qty | D1: Sales Qty | E1: CLSG | F1: Master Name | K1: Values
A2: 7517- BG II(Superb) Bayer- 475 GM | C2: 400 | D2: 195 | E2: 205 | F2: SURPASS 7517 BGII LOC 20X450GR BAG IN | J2: Row Labels | K2: Sum of Opening Qty | L2: Sum of Purchase Qty | M2: Sum of Sales Qty | N2: Sum of CLSG
A3: ADMIRE 150 GMS | B3: 23 | C3: 60 | D3: 30 | E3: 53 | F3: ADMIRE (T) WG70 30X150GR BOT IN | J3: ADMIRE (T) WG70 150X30GR BOT IN | K3: 119 | M3: 12 | N3: 107
A4: ADMIRE 30 GMS | B4: 119 | D4: 12 | E4: 107 | F4: ADMIRE (T) WG70 150X30GR BOT IN | J4: ADMIRE (T) WG70 30X150GR BOT IN | K4: 23 | L4: 60 | M4: 30 | N4: 53
A5: ADMIRE 75 GMS | B5: 39 | C5: 120 | D5: 30 | E5: 129 | F5: ADMIRE (T) WG70 60X75GR BOT IN | J5: ADMIRE (T) WG70 60X75GR BOT IN | K5: 39 | L5: 120 | M5: 30 | N5: 129
A6: AMBITION-1 LTR | B6: 175 | D6: 8 | E6: 167 | F6: AMBITION 10X1L BOT IN | J6: AMBITION 10X1L BOT IN | K6: 175 | M6: 8 | N6: 167
A7: AMBITION-250 ML | B7: 143 | D7: 21 | E7: 122 | F7: AMBITION 40X250ML BOT IN | J7: AMBITION 20X500ML BOT IN | K7: 296 | M7: 27 | N7: 269
A8: AMBITION-500 ML | B8: 296 | D8: 27 | E8: 269 | F8: AMBITION 20X500ML BOT IN | J8: AMBITION 40X250ML BOT IN | K8: 143 | M8: 21 | N8: 122
A9: ANTRACOL 1 KG(10 NOS) | B9: 10 | C9: 200 | D9: 80 | E9: 130 | F9: ANTRACOL (T) WP70 10X1KG BAG IN | J9: ANTRACOL (T) WP70 10X1KG BAG IN | K9: 10 | L9: 200 | M9: 80 | N9: 130
A10: ANTRACOL 250 GMS(40 NOS) | B10: 155 | C10: 80 | D10: 107 | E10: 128 | F10: ANTRACOL (T) WP70 40X250GR BAG IN | J10: ANTRACOL (T) WP70 20X500GR BAG IN | K10: 10 | L10: 500 | M10: 212 | N10: 298
A11: ANTRACOL 500 GMS(20 NOS) | B11: 10 | C11: 500 | D11: 212 | E11: 298 | F11: ANTRACOL (T) WP70 20X500GR BAG IN | J11: ANTRACOL (T) WP70 40X250GR BAG IN | K11: 155 | L11: 80 | M11: 107 | N11: 128
A12: BELT EXPERT 100 ML | B12: 10 | C12: 50 | D12: 5 | E12: 55 | F12: BELT EXPERT SC480 50X100ML BOT IN | J12: BELT EXPERT SC480 50X100ML BOT IN | K12: 10 | L12: 50 | M12: 5 | N12: 55
A13: BUONOS-250 ML | B13: 34 | D13: 18 | E13: 16 | F13: BUONOS SC430 40X250ML BOT IN | J13: BUONOS SC430 20X500ML BOT IN | L13: 20 | N13: 20
A14: BUONOS-500 ML | C14: 20 | E14: 20 | F14: BUONOS SC430 20X500ML BOT IN | J14: BUONOS SC430 40X250ML BOT IN | K14: 34 | M14: 18 | N14: 16
A15: CONFIDOR 100 ML(50 NOS) | B15: 35 | C15: 1250 | D15: 1062 | E15: 223 | F15: CONFIDOR (T) SL200 50X100ML BOT IN | J15: CONFIDOR (T) SL200 100X50ML BOT IN | K15: 29 | L15: 1000 | M15: 624 | N15: 405
A16: CONFIDOR 250 ML (20 NOS) | B16: 75 | C16: 500 | D16: 475 | E16: 100 | F16: CONFIDOR (T) SL200 20X250ML BOT IN | J16: CONFIDOR (T) SL200 20X250ML BOT IN | K16: 75 | L16: 500 | M16: 475 | N16: 100
A17: CONFIDOR 50 ML | B17: 29 | C17: 1000 | D17: 624 | E17: 405 | F17: CONFIDOR (T) SL200 100X50ML BOT IN | J17: CONFIDOR (T) SL200 50X100ML BOT IN | K17: 35 | L17: 1250 | M17: 1062 | N17: 223
A18: CONFIDOR SUPER 100 ML(50 NOS) | B18: 12 | C18: 1000 | D18: 687 | E18: 325 | F18: CONFIDOR SUPER (T) SC350 50X100ML BOT IN | J18: CONFIDOR SUPER (T) SC350 20X250ML BOT IN | K18: 53 | L18: 400 | M18: 267 | N18: 186
A19: CONFIDOR SUPER 250 ML(20 NOS) | B19: 53 | C19: 400 | D19: 267 | E19: 186 | F19: CONFIDOR SUPER (T) SC350 20X250ML BOT IN | J19: CONFIDOR SUPER (T) SC350 50X100ML BOT IN | K19: 12 | L19: 1000 | M19: 687 | N19: 325
A20: CONFIDOR SUPER 50 ML(50 NOS) | B20: 12 | C20: 650 | D20: 603 | E20: 59 | F20: CONFIDOR SUPER (T) SC350 50X50ML BOT IN | J20: CONFIDOR SUPER (T) SC350 50X50ML BOT IN | K20: 12 | L20: 650 | M20: 603 | N20: 59
A21: DECIS 100 BAYER 100 ML | B21: 14 | E21: 14 | F21: DECIS EC101-2 50X100ML BOX IN | J21: DECIS EC101-2 40X250ML BOT IN | K21: 16 | N21: 16
A22: DECIS-100 BAYER 250 ML | B22: 16 | E22: 16 | F22: DECIS EC101-2 40X250ML BOT IN | J22: DECIS EC101-2 50X100ML BOX IN | K22: 14 | N22: 14
A23: EVICENT-24 GM | C23: 50 | E23: 50 | F23: DISCOUNTINUE PRODUCT | J23: DISCOUNTINUE PRODUCT | L23: 50 | N23: 50
A24: FAME 100 ML | B24: 15 | E24: 15 | F24: FAME (T) SC480 20X100ML BOT IN | J24: FAME (T) SC480 10X(20X10ML) BOT IN | K24: 100 | M24: 8 | N24: 92
A25: FAME 10 ML | B25: 100 | D25: 8 | E25: 92 | F25: FAME (T) SC480 10X(20X10ML) BOT IN | J25: FAME (T) SC480 20X100ML BOT IN | K25: 15 | N25: 15
A26: FAME 50 ML | B26: 6 | D26: 1 | E26: 5 | F26: FAME (T) SC480 40X50ML BOT IN | J26: FAME (T) SC480 40X50ML BOT IN | K26: 6 | M26: 1 | N26: 5
A27: FENOS QUICK-100 ML | C27: 300 | E27: 300 | F27: FENOS QUICK SC150 50X100ML BOT IN | J27: FENOS QUICK SC150 40X250ML BOT IN | L27: 80 | M27: 2 | N27: 78
A28: FENOS QUICK-250 ML | C28: 80 | D28: 2 | E28: 78 | F28: FENOS QUICK SC150 40X250ML BOT IN | J28: FENOS QUICK SC150 50X100ML BOT IN | K28: 34 | L28: 300 | M28: 9 | N28: 325
A29: Fenus Quick-100ml | B29: 34 | D29: 9 | E29: 25 | F29: FENOS QUICK SC150 50X100ML BOT IN | J29: FOOST WP50 24X500G BAG IN | K29: 17 | L29: 240 | M29: 93 | N29: 164
A30: Firstclass-7149 Bayer-475GM | C30: 126 | D30: 116 | E30: 10 | F30: SURPASS FC 7149 BG2 (RIB) 20X475G BAG IN | J30: INFINITO SC687 5 20X500ML BOT IN | K30: 16 | M30: 1 | N30: 15
A31: FOOST 500 GM | B31: 17 | C31: 240 | D31: 93 | E31: 164 | F31: FOOST WP50 24X500G BAG IN | J31: INFINITO SC687 5 50X100ML BOT IN | K31: 6 | M31: 1 | N31: 5
A32: INFINITO-100 ML | B32: 6 | D32: 1 | E32: 5 | F32: INFINITO SC687 5 50X100ML BOT IN | J32: JUMP WG80 160X(10X2GR) BAG IN | K32: 1249 | M32: 476 | N32: 773
A33: INFINITO-500 ML | B33: 16 | D33: 1 | E33: 15 | F33: INFINITO SC687 5 20X500ML BOT IN | J33: JUMP WG80 80X40GR BAG IN | K33: 29 | L33: 80 | M33: 10 | N33: 99
A34: JUMP 2GM | B34: 1249 | D34: 476 | E34: 773 | F34: JUMP WG80 160X(10X2GR) BAG IN | J34: LARVIN (T) WP75 20X250GR BAG IN | K34: 2 | N34: 2
A35: JUMP 40 GMS | B35: 29 | C35: 80 | D35: 10 | E35: 99 | F35: JUMP WG80 80X40GR BAG IN | J35: LARVIN (T) WP75 20X500GR BAG IN | K35: 39 | M35: 3 | N35: 36
A36: LARVIN 100 GMS | F36: LARVIN (T) WP75 40X100GR BAG IN | J36: LARVIN (T) WP75 40X100GR BAG IN
A37: LARVIN 250 GMS | B37: 2 | E37: 2 | F37: LARVIN (T) WP75 20X250GR BAG IN | J37: LAUDIS SC630 10X57.5ML BOT IN | L37: 10 | M37: 4 | N37: 6
A38: LARVIN 500 GMS | B38: 39 | D38: 3 | E38: 36 | F38: LARVIN (T) WP75 20X500GR BAG IN | J38: LAUDIS SC630 8X115ML BOT IN | L38: 480 | M38: 233 | N38: 247
A39: LAUDIS 115 MLS(08 NOS) | C39: 480 | D39: 233 | E39: 247 | F39: LAUDIS SC630 8X115ML BOT IN | J39: MOVENTO ENERGY SC240 10X1L BOT IN | K39: 30 | N39: 30
A40: LAUDIS 57.5 ML | C40: 10 | D40: 4 | E40: 6 | F40: LAUDIS SC630 10X57.5ML BOT IN | J40: MOVENTO ENERGY SC240 40X250ML BOT IN | K40: 14 | M40: 10 | N40: 4
A41: MOVENTO ENERGY SC240_100 ML | B41: 7 | E41: 7 | F41: MOVENTO ENERGY SC240 50X100ML BOT IN | J41: MOVENTO ENERGY SC240 50X100ML BOT IN | K41: 7 | N41: 7
A42: MOVENTO ENERGY SC240_1 LTR | B42: 30 | E42: 30 | F42: MOVENTO ENERGY SC240 10X1L BOT IN | J42: NATIVO WG75 100X50GR BAG IN | K42: 51 | M42: 5 | N42: 46
A43: MOVENTO ENERGY SC240_250 ML | B43: 14 | D43: 10 | E43: 4 | F43: MOVENTO ENERGY SC240 40X250ML BOT IN | J43: NATIVO WG75 40X250GR BAG IN | K43: 29 | M43: 10 | N43: 19
A44: NATIVO 100 GMS | B44: 68 | C44: 50 | D44: 27 | E44: 91 | F44: NATIVO WG75 50X100GR BAG IN | J44: NATIVO WG75 50X100GR BAG IN | K44: 68 | L44: 50 | M44: 27 | N44: 91
A45: NATIVO 250 GMS | B45: 29 | D45: 10 | E45: 19 | F45: NATIVO WG75 40X250GR BAG IN | J45: OBERON (T) SC240 20X500ML BOT IN | K45: 13 | M45: 9 | N45: 4
A46: NATIVO 50 GMS | B46: 51 | D46: 5 | E46: 46 | F46: NATIVO WG75 100X50GR BAG IN | J46: OBERON (T) SC240 40X200ML BOT IN | K46: 24 | M46: 3 | N46: 21
A47: OBERON 100 ML | B47: 20 | D47: 16 | E47: 4 | F47: OBERON (T) SC240 50X100ML BOT IN | J47: OBERON (T) SC240 50X100ML BOT IN | K47: 20 | M47: 16 | N47: 4
A48: OBERON 200 ML | B48: 24 | D48: 3 | E48: 21 | F48: OBERON (T) SC240 40X200ML BOT IN | J48: PLANOFIX SL4 5 40X250ML BOT IN | K48: 35 | L48: 200 | M48: 6 | N48: 229
A49: OBERON 500 ML | B49: 13 | D49: 9 | E49: 4 | F49: OBERON (T) SC240 20X500ML BOT IN | J49: PLANOFIX SL4 5 50X100ML BOT IN | K49: 37 | L49: 250 | M49: 27 | N49: 260
A50: PLANOFIX 100 ML(50 NOS) | B50: 37 | C50: 250 | D50: 27 | E50: 260 | F50: PLANOFIX SL4 5 50X100ML BOT IN | J50: REGENT (T) SC50 10X1L BOT IN | K50: 32 | L50: 250 | M50: 36 | N50: 246
A51: PLANOFIX 250 ML(40 NOS) | B51: 35 | C51: 200 | D51: 6 | E51: 229 | F51: PLANOFIX SL4 5 40X250ML BOT IN | J51: REGENT (T) SC50 20X250ML BOT IN | K51: 13 | L51: 100 | M51: 46 | N51: 67
A52: REGENT SC 1 KG/LTR(10 NOS) | B52: 32 | C52: 250 | D52: 36 | E52: 246 | F52: REGENT (T) SC50 10X1L BOT IN | J52: REGENT (T) SC50 20X500ML BOT IN | K52: 12 | L52: 300 | M52: 56 | N52: 256
A53: REGENT SC 250 GMS/ML | B53: 13 | C53: 100 | D53: 46 | E53: 67 | F53: REGENT (T) SC50 20X250ML BOT IN | J53: SOLOMON OD300 20X500ML BOT IN | L53: 300 | M53: 165 | N53: 135
A54: REGENT SC 500 GMS/ML(20 NOS) | B54: 12 | C54: 300 | D54: 56 | E54: 256 | F54: REGENT (T) SC50 20X500ML BOT IN | J54: SOLOMON OD300 40X250ML BOT IN | K54: 42 | L54: 600 | M54: 228 | N54: 414
A55: SOLOMAN 100 ML | B55: 29 | C55: 300 | D55: 21 | E55: 308 | F55: SOLOMON OD300 50X100ML BOT IN | J55: SOLOMON OD300 50X100ML BOT IN | K55: 29 | L55: 300 | M55: 21 | N55: 308
A56: SOLOMAN 250 ML | B56: 42 | C56: 600 | D56: 228 | E56: 414 | F56: SOLOMON OD300 40X250ML BOT IN | J56: SURPASS 7517 BGII LOC 20X450GR BAG IN | L56: 400 | M56: 195 | N56: 205
A57: SOLOMAN 500 ML | C57: 300 | D57: 165 | E57: 135 | F57: SOLOMON OD300 20X500ML BOT IN | J57: SURPASS FC 7149 BG2 (RIB) 20X475G BAG IN | L57: 126 | M57: 116 | N57: 10
A58: WHIPSUPER(T) EC90_100 ML | B58: 30 | D58: 25 | E58: 5 | F58: WHIPSUPER (T) EC90 50X100ML BOT IN | J58: WHIPSUPER (T) EC90 10X1L BOT IN | K58: 7 | N58: 7
A59: WHIPSUPER(T) EC90_1 LTR | B59: 7 | E59: 7 | F59: WHIPSUPER (T) EC90 10X1L BOT IN | J59: WHIPSUPER (T) EC90 50X100ML BOT IN | K59: 30 | M59: 25 | N59: 5
J60: Grand Total | K60: 3266 | L60: 9946 | M60: 6110 | N60: 7102

Sheet Master
A1: Item Details | B1: Master Name
A2: 7517- BG II(Superb) Bayer- 475 GM | B2: SURPASS 7517 BGII LOC 20X450GR BAG IN
A3: ADMIRE 150 GMS | B3: ADMIRE (T) WG70 30X150GR BOT IN
A4: ADMIRE 30 GMS | B4: ADMIRE (T) WG70 150X30GR BOT IN
A5: ADMIRE 75 GMS | B5: ADMIRE (T) WG70 60X75GR BOT IN
A6: AMBITION-1 LTR | B6: AMBITION 10X1L BOT IN
A7: AMBITION-250 ML | B7: AMBITION 40X250ML BOT IN
A8: AMBITION-500 ML | B8: AMBITION 20X500ML BOT IN
A9: ANTRACOL 1 KG(10 NOS) | B9: ANTRACOL (T) WP70 10X1KG BAG IN
A10: ANTRACOL 250 GMS(40 NOS) | B10: ANTRACOL (T) WP70 40X250GR BAG IN
A11: ANTRACOL 500 GMS(20 NOS) | B11: ANTRACOL (T) WP70 20X500GR BAG IN
A12: BELT EXPERT 100 ML | B12: BELT EXPERT SC480 50X100ML BOT IN
A13: BUONOS-250 ML | B13: BUONOS SC430 40X250ML BOT IN
A14: BUONOS-500 ML | B14: BUONOS SC430 20X500ML BOT IN
A15: CONFIDOR 100 ML(50 NOS) | B15: CONFIDOR (T) SL200 50X100ML BOT IN
A16: CONFIDOR 250 ML (20 NOS) | B16: CONFIDOR (T) SL200 20X250ML BOT IN
A17: CONFIDOR 50 ML | B17: CONFIDOR (T) SL200 100X50ML BOT IN
A18: CONFIDOR SUPER 100 ML(50 NOS) | B18: CONFIDOR SUPER (T) SC350 50X100ML BOT IN
A19: CONFIDOR SUPER 250 ML(20 NOS) | B19: CONFIDOR SUPER (T) SC350 20X250ML BOT IN
A20: CONFIDOR SUPER 50 ML(50 NOS) | B20: CONFIDOR SUPER (T) SC350 50X50ML BOT IN
A21: DECIS 100 BAYER 100 ML | B21: DECIS EC101-2 50X100ML BOX IN
A22: DECIS-100 BAYER 250 ML | B22: DECIS EC101-2 40X250ML BOT IN
A23: EVICENT-24 GM | B23: DISCOUNTINUE PRODUCT
A24: FAME 100 ML | B24: FAME (T) SC480 20X100ML BOT IN
A25: FAME 10 ML | B25: FAME (T) SC480 10X(20X10ML) BOT IN
A26: FAME 50 ML | B26: FAME (T) SC480 40X50ML BOT IN
A27: FENOS QUICK-100 ML | B27: FENOS QUICK SC150 50X100ML BOT IN
A28: FENOS QUICK-250 ML | B28: FENOS QUICK SC150 40X250ML BOT IN
A29: Fenus Quick-100ml | B29: FENOS QUICK SC150 50X100ML BOT IN
A30: Firstclass-7149 Bayer-475GM | B30: SURPASS FC 7149 BG2 (RIB) 20X475G BAG IN
A31: FOOST 500 GM | B31: FOOST WP50 24X500G BAG IN
A32: INFINITO-100 ML | B32: INFINITO SC687 5 50X100ML BOT IN
A33: INFINITO-500 ML | B33: INFINITO SC687 5 20X500ML BOT IN
A34: JUMP 2GM | B34: JUMP WG80 160X(10X2GR) BAG IN
A35: JUMP 40 GMS | B35: JUMP WG80 80X40GR BAG IN
A36: LARVIN 100 GMS | B36: LARVIN (T) WP75 40X100GR BAG IN
A37: LARVIN 250 GMS | B37: LARVIN (T) WP75 20X250GR BAG IN
A38: LARVIN 500 GMS | B38: LARVIN (T) WP75 20X500GR BAG IN
A39: LAUDIS 115 MLS(08 NOS) | B39: LAUDIS SC630 8X115ML BOT IN
A40: LAUDIS 57.5 ML | B40: LAUDIS SC630 10X57.5ML BOT IN
A41: MOVENTO ENERGY SC240_100 ML | B41: MOVENTO ENERGY SC240 50X100ML BOT IN
A42: MOVENTO ENERGY SC240_1 LTR | B42: MOVENTO ENERGY SC240 10X1L BOT IN
A43: MOVENTO ENERGY SC240_250 ML | B43: MOVENTO ENERGY SC240 40X250ML BOT IN
A44: NATIVO 100 GMS | B44: NATIVO WG75 50X100GR BAG IN
A45: NATIVO 250 GMS | B45: NATIVO WG75 40X250GR BAG IN
A46: NATIVO 50 GMS | B46: NATIVO WG75 100X50GR BAG IN
A47: OBERON 100 ML | B47: OBERON (T) SC240 50X100ML BOT IN
A48: OBERON 200 ML | B48: OBERON (T) SC240 40X200ML BOT IN
A49: OBERON 500 ML | B49: OBERON (T) SC240 20X500ML BOT IN
A50: PLANOFIX 100 ML(50 NOS) | B50: PLANOFIX SL4 5 50X100ML BOT IN
A51: PLANOFIX 250 ML(40 NOS) | B51: PLANOFIX SL4 5 40X250ML BOT IN
A52: REGENT SC 1 KG/LTR(10 NOS) | B52: REGENT (T) SC50 10X1L BOT IN
A53: REGENT SC 250 GMS/ML | B53: REGENT (T) SC50 20X250ML BOT IN
A54: REGENT SC 500 GMS/ML(20 NOS) | B54: REGENT (T) SC50 20X500ML BOT IN
A55: SOLOMAN 100 ML | B55: SOLOMON OD300 50X100ML BOT IN
A56: SOLOMAN 250 ML | B56: SOLOMON OD300 40X250ML BOT IN
A57: SOLOMAN 500 ML | B57: SOLOMON OD300 20X500ML BOT IN
A58: WHIPSUPER(T) EC90_100 ML | B58: WHIPSUPER (T) EC90 50X100ML BOT IN
A59: WHIPSUPER(T) EC90_1 LTR | B59: WHIPSUPER (T) EC90 10X1L BOT IN

Sheet Final Dealer Work
B2: PRODUCT | C2: ITEMALIAS | D2: Bpc | E2: Volume | F2: Opening Qty | G2: Purchase Qty | H2: Purchase Return Qty | I2: Sales Qty | J2: Sales Return Qty | K2: Transfer Qty | L2: Consignment Qty | M2: Adjustment Qty | N2: CLSG
B3: ADMIRE (T) WG70 150X30GR BOT IN | F3: 119 | G3: 0 | H3: 0 | I3: 12 | J3: 0 | K3: 0 | L3: 0 | M3: 0 | N3: 107
B4: ADMIRE (T) WG70 30X150GR BOT IN | F4: 23 | G4: 60 | H4: 0 | I4: 30 | J4: 0 | K4: 0 | L4: 0 | M4: 0 | N4: 53
B5: ADMIRE (T) WG70 60X75GR BOT IN | F5: 39 | G5: 120 | H5: 0 | I5: 30 | J5: 0 | K5: 0 | L5: 0 | M5: 0 | N5: 129
B6: AMBITION 10X1L BOT IN | F6: 175 | G6: 0 | H6: 0 | I6: 8 | J6: 0 | K6: 0 | L6: 0 | M6: 0 | N6: 167
B7: AMBITION 20X500ML BOT IN | F7: 296 | G7: 0 | H7: 0 | I7: 27 | J7: 0 | K7: 0 | L7: 0 | M7: 0 | N7: 269
B8: AMBITION 40X250ML BOT IN | F8: 143 | G8: 0 | H8: 0 | I8: 21 | J8: 0 | K8: 0 | L8: 0 | M8: 0 | N8: 122
B9: ANTRACOL (T) WP70 10X1KG BAG IN | F9: 10 | G9: 200 | H9: 0 | I9: 80 | J9: 0 | K9: 0 | L9: 0 | M9: 0 | N9: 130
B10: ANTRACOL (T) WP70 20X500GR BAG IN | F10: 10 | G10: 500 | H10: 0 | I10: 212 | J10: 0 | K10: 0 | L10: 0 | M10: 0 | N10: 298
B11: ANTRACOL (T) WP70 40X250GR BAG IN | F11: 155 | G11: 80 | H11: 0 | I11: 107 | J11: 0 | K11: 0 | L11: 0 | M11: 0 | N11: 128
B12: BELT EXPERT SC480 50X100ML BOT IN | F12: 10 | G12: 50 | H12: 0 | I12: 5 | J12: 0 | K12: 0 | L12: 0 | M12: 0 | N12: 55
B13: BUONOS SC430 20X500ML BOT IN | F13: 0 | G13: 20 | H13: 0 | I13: 0 | J13: 0 | K13: 0 | L13: 0 | M13: 0 | N13: 20
B14: BUONOS SC430 40X250ML BOT IN | F14: 34 | G14: 0 | H14: 0 | I14: 18 | J14: 0 | K14: 0 | L14: 0 | M14: 0 | N14: 16
B15: CONFIDOR (T) SL200 100X50ML BOT IN | F15: 29 | G15: 1000 | H15: 0 | I15: 624 | J15: 0 | K15: 0 | L15: 0 | M15: 0 | N15: 405
B16: CONFIDOR (T) SL200 20X250ML BOT IN | F16: 75 | G16: 500 | H16: 0 | I16: 475 | J16: 0 | K16: 0 | L16: 0 | M16: 0 | N16: 100
B17: CONFIDOR (T) SL200 50X100ML BOT IN | F17: 35 | G17: 1250 | H17: 0 | I17: 1062 | J17: 0 | K17: 0 | L17: 0 | M17: 0 | N17: 223
B18: CONFIDOR SUPER (T) SC350 20X250ML BOT IN | F18: 53 | G18: 400 | H18: 0 | I18: 267 | J18: 0 | K18: 0 | L18: 0 | M18: 0 | N18: 186
B19: CONFIDOR SUPER (T) SC350 50X100ML BOT IN | F19: 12 | G19: 1000 | H19: 0 | I19: 687 | J19: 0 | K19: 0 | L19: 0 | M19: 0 | N19: 325
B20: CONFIDOR SUPER (T) SC350 50X50ML BOT IN | F20: 12 | G20: 650 | H20: 0 | I20: 603 | J20: 0 | K20: 0 | L20: 0 | M20: 0 | N20: 59
B21: DECIS EC101-2 40X250ML BOT IN | F21: 16 | G21: 0 | H21: 0 | I21: 0 | J21: 0 | K21: 0 | L21: 0 | M21: 0 | N21: 16
B22: DECIS EC101-2 50X100ML BOX IN | F22: 14 | G22: 0 | H22: 0 | I22: 0 | J22: 0 | K22: 0 | L22: 0 | M22: 0 | N22: 14
B23: DISCOUNTINUE PRODUCT | F23: 0 | G23: 50 | H23: 0 | I23: 0 | J23: 0 | K23: 0 | L23: 0 | M23: 0 | N23: 50
B24: FAME (T) SC480 10X(20X10ML) BOT IN | F24: 100 | G24: 0 | H24: 0 | I24: 8 | J24: 0 | K24: 0 | L24: 0 | M24: 0 | N24: 92
B25: FAME (T) SC480 20X100ML BOT IN | F25: 15 | G25: 0 | H25: 0 | I25: 0 | J25: 0 | K25: 0 | L25: 0 | M25: 0 | N25: 15
B26: FAME (T) SC480 40X50ML BOT IN | F26: 6 | G26: 0 | H26: 0 | I26: 1 | J26: 0 | K26: 0 | L26: 0 | M26: 0 | N26: 5
B27: FENOS QUICK SC150 40X250ML BOT IN | F27: 0 | G27: 80 | H27: 0 | I27: 2 | J27: 0 | K27: 0 | L27: 0 | M27: 0 | N27: 78
B28: FENOS QUICK SC150 50X100ML BOT IN | F28: 34 | G28: 300 | H28: 0 | I28: 9 | J28: 0 | K28: 0 | L28: 0 | M28: 0 | N28: 325
B29: FOOST WP50 24X500G BAG IN | F29: 17 | G29: 240 | H29: 0 | I29: 93 | J29: 0 | K29: 0 | L29: 0 | M29: 0 | N29: 164
B30: INFINITO SC687 5 20X500ML BOT IN | F30: 16 | G30: 0 | H30: 0 | I30: 1 | J30: 0 | K30: 0 | L30: 0 | M30: 0 | N30: 15
B31: INFINITO SC687 5 50X100ML BOT IN | F31: 6 | G31: 0 | H31: 0 | I31: 1 | J31: 0 | K31: 0 | L31: 0 | M31: 0 | N31: 5
B32: JUMP WG80 160X(10X2GR) BAG IN | F32: 1249 | G32: 0 | H32: 0 | I32: 476 | J32: 0 | K32: 0 | L32: 0 | M32: 0 | N32: 773
B33: JUMP WG80 80X40GR BAG IN | F33: 29 | G33: 80 | H33: 0 | I33: 10 | J33: 0 | K33: 0 | L33: 0 | M33: 0 | N33: 99
B34: LARVIN (T) WP75 20X250GR BAG IN | F34: 2 | G34: 0 | H34: 0 | I34: 0 | J34: 0 | K34: 0 | L34: 0 | M34: 0 | N34: 2
B35: LARVIN (T) WP75 20X500GR BAG IN | F35: 39 | G35: 0 | H35: 0 | I35: 3 | J35: 0 | K35: 0 | L35: 0 | M35: 0 | N35: 36
B36: LARVIN (T) WP75 40X100GR BAG IN | F36: 0 | G36: 0 | H36: 0 | I36: 0 | J36: 0 | K36: 0 | L36: 0 | M36: 0 | N36: 0
B37: LAUDIS SC630 10X57.5ML BOT IN | F37: 0 | G37: 10 | H37: 0 | I37: 4 | J37: 0 | K37: 0 | L37: 0 | M37: 0 | N37: 6
B38: LAUDIS SC630 8X115ML BOT IN | F38: 0 | G38: 480 | H38: 0 | I38: 233 | J38: 0 | K38: 0 | L38: 0 | M38: 0 | N38: 247
B39: MOVENTO ENERGY SC240 10X1L BOT IN | F39: 30 | G39: 0 | H39: 0 | I39: 0 | J39: 0 | K39: 0 | L39: 0 | M39: 0 | N39: 30
B40: MOVENTO ENERGY SC240 40X250ML BOT IN | F40: 14 | G40: 0 | H40: 0 | I40: 10 | J40: 0 | K40: 0 | L40: 0 | M40: 0 | N40: 4
B41: MOVENTO ENERGY SC240 50X100ML BOT IN | F41: 7 | G41: 0 | H41: 0 | I41: 0 | J41: 0 | K41: 0 | L41: 0 | M41: 0 | N41: 7
B42: NATIVO WG75 100X50GR BAG IN | F42: 51 | G42: 0 | H42: 0 | I42: 5 | J42: 0 | K42: 0 | L42: 0 | M42: 0 | N42: 46
B43: NATIVO WG75 40X250GR BAG IN | F43: 29 | G43: 0 | H43: 0 | I43: 10 | J43: 0 | K43: 0 | L43: 0 | M43: 0 | N43: 19
B44: NATIVO WG75 50X100GR BAG IN | F44: 68 | G44: 50 | H44: 0 | I44: 27 | J44: 0 | K44: 0 | L44: 0 | M44: 0 | N44: 91
B45: OBERON (T) SC240 20X500ML BOT IN | F45: 13 | G45: 0 | H45: 0 | I45: 9 | J45: 0 | K45: 0 | L45: 0 | M45: 0 | N45: 4
B46: OBERON (T) SC240 40X200ML BOT IN | F46: 24 | G46: 0 | H46: 0 | I46: 3 | J46: 0 | K46: 0 | L46: 0 | M46: 0 | N46: 21
B47: OBERON (T) SC240 50X100ML BOT IN | F47: 20 | G47: 0 | H47: 0 | I47: 16 | J47: 0 | K47: 0 | L47: 0 | M47: 0 | N47: 4
B48: PLANOFIX SL4 5 40X250ML BOT IN | F48: 35 | G48: 200 | H48: 0 | I48: 6 | J48: 0 | K48: 0 | L48: 0 | M48: 0 | N48: 229
B49: PLANOFIX SL4 5 50X100ML BOT IN | F49: 37 | G49: 250 | H49: 0 | I49: 27 | J49: 0 | K49: 0 | L49: 0 | M49: 0 | N49: 260
B50: REGENT (T) SC50 10X1L BOT IN | F50: 32 | G50: 250 | H50: 0 | I50: 36 | J50: 0 | K50: 0 | L50: 0 | M50: 0 | N50: 246
B51: REGENT (T) SC50 20X250ML BOT IN | F51: 13 | G51: 100 | H51: 0 | I51: 46 | J51: 0 | K51: 0 | L51: 0 | M51: 0 | N51: 67
B52: REGENT (T) SC50 20X500ML BOT IN | F52: 12 | G52: 300 | H52: 0 | I52: 56 | J52: 0 | K52: 0 | L52: 0 | M52: 0 | N52: 256
B53: SOLOMON OD300 20X500ML BOT IN | F53: 0 | G53: 300 | H53: 0 | I53: 165 | J53: 0 | K53: 0 | L53: 0 | M53: 0 | N53: 135
B54: SOLOMON OD300 40X250ML BOT IN | F54: 42 | G54: 600 | H54: 0 | I54: 228 | J54: 0 | K54: 0 | L54: 0 | M54: 0 | N54: 414
B55: SOLOMON OD300 50X100ML BOT IN | F55: 29 | G55: 300 | H55: 0 | I55: 21 | J55: 0 | K55: 0 | L55: 0 | M55: 0 | N55: 308
B56: SURPASS 7517 BGII LOC 20X450GR BAG IN | F56: 0 | G56: 400 | H56: 0 | I56: 195 | J56: 0 | K56: 0 | L56: 0 | M56: 0 | N56: 205
B57: SURPASS FC 7149 BG2 (RIB) 20X475G BAG IN | F57: 0 | G57: 126 | H57: 0 | I57: 116 | J57: 0 | K57: 0 | L57: 0 | M57: 0 | N57: 10
B58: WHIPSUPER (T) EC90 10X1L BOT IN | F58: 7 | G58: 0 | H58: 0 | I58: 0 | J58: 0 | K58: 0 | L58: 0 | M58: 0 | N58: 7
B59: WHIPSUPER (T) EC90 50X100ML BOT IN | F59: 30 | G59: 0 | H59: 0 | I59: 25 | J59: 0 | K59: 0 | L59: 0 | M59: 0 | N59: 5
B60: Grand Total | F60: 3266 | G60: 9946 | H60: 0 | I60: 6110 | J60: 0 | K60: 0 | L60: 0 | M60: 0 | N60: 7102

Sheet Zylem SNS Report
A2: Company Name:-BAYER
A3: Stock and Sales FOR THE PERIOD 01-Apr-2021 TO 31-Jul-2021
A4: Generated on 8/18/2021 7:48:01 AM
A5: DISTRIBUTOR PRODUCTWISE
A6: OUTPUT IN : PIC,DETAILS AS : Column,CONSIDER : Voucher Date,INCLUDE VALIDATION : False
A7: DISTRIBUTOR:Khandelwal Krushi Kendra,
A8: DISTRIBUTOR | B8: SAPCODE | C8: PRODUCT | D8: ITEMALIAS | E8: Opening Qty | F8: Purchase Qty | G8: Purchase Return Qty | H8: Sales Qty | I8: Sales Return Qty | J8: Transfer Qty | K8: Consignment Qty | L8: Adjustment Qty | M8: CLSG
A9: Khandelwal Krushi Kendra | B9: 4434413 | C9: ADMIRE (T) WG70 150X30GR BOT IN | D9: 79234988 | E9: 119 | F9: 0 | G9: 0 | H9: 12 | I9: 0 | J9: 0 | K9: 0 | L9: 0 | M9: 107
A10: Khandelwal Krushi Kendra | B10: 4434413 | C10: ADMIRE (T) WG70 30X150GR BOT IN | D10: 79277857 | E10: 23 | F10: 60 | G10: 0 | H10: 30 | I10: 0 | J10: 0 | K10: 0 | L10: 0 | M10: 53
A11: Khandelwal Krushi Kendra | B11: 4434413 | C11: ADMIRE (T) WG70 60X75GR BOT IN | D11: 79297696 | E11: 39 | F11: 120 | G11: 0 | H11: 30 | I11: 0 | J11: 0 | K11: 0 | L11: 0 | M11: 129
A12: Khandelwal Krushi Kendra | B12: 4434413 | C12: ALIETTE WP80 20X500GR BAG IN | D12: 3822366 | E12: 0 | F12: 0 | G12: 0 | H12: 6 | I12: 0 | J12: 0 | K12: 0 | L12: 0 | M12: -6
A13: Khandelwal Krushi Kendra | B13: 4434413 | C13: AMBITION 10X1L BOT IN | D13: 86212544 | E13: 175 | F13: 0 | G13: 0 | H13: 8 | I13: 0 | J13: 0 | K13: 0 | L13: 0 | M13: 167
A14: Khandelwal Krushi Kendra | B14: 4434413 | C14: AMBITION 20X500ML BOT IN | D14: 86228564 | E14: 296 | F14: 0 | G14: 0 | H14: 27 | I14: 0 | J14: 0 | K14: 0 | L14: 0 | M14: 269
A15: Khandelwal Krushi Kendra | B15: 4434413 | C15: AMBITION 40X250ML BOT IN | D15: 86232308 | E15: 143 | F15: 0 | G15: 0 | H15: 21 | I15: 0 | J15: 0 | K15: 0 | L15: 0 | M15: 122
A16: Khandelwal Krushi Kendra | B16: 4434413 | C16: ANTRACOL (T) WP70 10X1KG BAG IN | D16: 6077322 | E16: 10 | F16: 200 | G16: 0 | H16: 80 | I16: 0 | J16: 0 | K16: 0 | L16: 0 | M16: 130
A17: Khandelwal Krushi Kendra | B17: 4434413 | C17: ANTRACOL (T) WP70 20X500GR BAG IN | D17: 5999978 | E17: 10 | F17: 500 | G17: 0 | H17: 212 | I17: 0 | J17: 0 | K17: 0 | L17: 0 | M17: 298
A18: Khandelwal Krushi Kendra | B18: 4434413 | C18: ANTRACOL (T) WP70 40X250GR BAG IN | D18: 6112179 | E18: 155 | F18: 80 | G18: 0 | H18: 107 | I18: 0 | J18: 0 | K18: 0 | L18: 0 | M18: 128
A19: Khandelwal Krushi Kendra | B19: 4434413 | C19: BELT EXPERT SC480 50X100ML BOT IN | D19: 79722869 | E19: 10 | F19: 50 | G19: 0 | H19: 5 | I19: 0 | J19: 0 | K19: 0 | L19: 0 | M19: 55
A20: Khandelwal Krushi Kendra | B20: 4434413 | C20: CONFIDOR (T) SL200 100X50ML BOT IN | D20: 5708361 | E20: 29 | F20: 1000 | G20: 0 | H20: 624 | I20: 0 | J20: 0 | K20: 0 | L20: 0 | M20: 405
A21: Khandelwal Krushi Kendra | B21: 4434413 | C21: CONFIDOR (T) SL200 20X250ML BOT IN | D21: 5699494 | E21: 75 | F21: 500 | G21: 0 | H21: 475 | I21: 0 | J21: 0 | K21: 0 | L21: 0 | M21: 100
A22: Khandelwal Krushi Kendra | B22: 4434413 | C22: CONFIDOR (T) SL200 50X100ML BOT IN | D22: 5703475 | E22: 35 | F22: 1250 | G22: 0 | H22: 1062 | I22: 0 | J22: 0 | K22: 0 | L22: 0 | M22: 223
A23: Khandelwal Krushi Kendra | B23: 4434413 | C23: CONFIDOR SUPER (T) SC350 20X250ML BOT IN | D23: 79710852 | E23: 53 | F23: 400 | G23: 0 | H23: 267 | I23: 0 | J23: 0 | K23: 0 | L23: 0 | M23: 186
A24: Khandelwal Krushi Kendra | B24: 4434413 | C24: CONFIDOR SUPER (T) SC350 50X100ML BOT IN | D24: 79735219 | E24: 12 | F24: 1000 | G24: 0 | H24: 687 | I24: 0 | J24: 0 | K24: 0 | L24: 0 | M24: 325
A25: Khandelwal Krushi Kendra | B25: 4434413 | C25: CONFIDOR SUPER (T) SC350 50X50ML BOT IN | D25: 79985169 | E25: 12 | F25: 650 | G25: 0 | H25: 603 | I25: 0 | J25: 0 | K25: 0 | L25: 0 | M25: 59
A26: Khandelwal Krushi Kendra | B26: 4434413 | C26: ETHREL SL39 50X100ML BOT IN | D26: 4299026 | E26: 0 | F26: 0 | G26: 0 | H26: 1 | I26: 0 | J26: 0 | K26: 0 | L26: 0 | M26: -1
A27: Khandelwal Krushi Kendra | B27: 4434413 | C27: FAME (T) SC480 10X(20X10ML) BOT IN | D27: 79305885 | E27: 100 | F27: 0 | G27: 0 | H27: 8 | I27: 0 | J27: 0 | K27: 0 | L27: 0 | M27: 92
A28: Khandelwal Krushi Kendra | B28: 4434413 | C28: FAME (T) SC480 20X100ML BOT IN | D28: 79266197 | E28: 15 | F28: 0 | G28: 0 | H28: 0 | I28: 0 | J28: 0 | K28: 0 | L28: 0 | M28: 15
A29: Khandelwal Krushi Kendra | B29: 4434413 | C29: FAME (T) SC480 40X50ML BOT IN | D29: 79224699 | E29: 6 | F29: 0 | G29: 0 | H29: 1 | I29: 0 | J29: 0 | K29: 0 | L29: 0 | M29: 5
A30: Khandelwal Krushi Kendra | B30: 4434413 | C30: FENOS QUICK SC150 40X250ML BOT IN | D30: 81016984 | E30: 0 | F30: 80 | G30: 0 | H30: 2 | I30: 0 | J30: 0 | K30: 0 | L30: 0 | M30: 78
A31: Khandelwal Krushi Kendra | B31: 4434413 | C31: FENOS QUICK SC150 50X100ML BOT IN | D31: 80942990 | E31: 34 | F31: 300 | G31: 0 | H31: 9 | I31: 0 | J31: 0 | K31: 0 | L31: 0 | M31: 325
A32: Khandelwal Krushi Kendra | B32: 4434413 | C32: FOOST WP50 24X500G BAG IN | D32: 85811770 | E32: 17 | F32: 240 | G32: 0 | H32: 93 | I32: 0 | J32: 0 | K32: 0 | L32: 0 | M32: 164
A33: Khandelwal Krushi Kendra | B33: 4434413 | C33: INFINITO SC687 5 20X500ML BOT IN | D33: 79641176 | E33: 16 | F33: 0 | G33: 0 | H33: 1 | I33: 0 | J33: 0 | K33: 0 | L33: 0 | M33: 15
A34: Khandelwal Krushi Kendra | B34: 4434413 | C34: INFINITO SC687 5 50X100ML BOT IN | D34: 79632487 | E34: 6 | F34: 0 | G34: 0 | H34: 1 | I34: 0 | J34: 0 | K34: 0 | L34: 0 | M34: 5
A35: Khandelwal Krushi Kendra | B35: 4434413 | C35: JUMP WG80 160X(10X2GR) BAG IN | D35: 79215304 | E35: 1249 | F35: 0 | G35: 0 | H35: 476 | I35: 0 | J35: 0 | K35: 0 | L35: 0 | M35: 773
A36: Khandelwal Krushi Kendra | B36: 4434413 | C36: JUMP WG80 80X40GR BAG IN | D36: 79267509 | E36: 29 | F36: 80 | G36: 0 | H36: 10 | I36: 0 | J36: 0 | K36: 0 | L36: 0 | M36: 99
A37: Khandelwal Krushi Kendra | B37: 4434413 | C37: LARVIN (T) WP75 20X250GR BAG IN | D37: 6003167 | E37: 2 | F37: 0 | G37: 0 | H37: 0 | I37: 0 | J37: 0 | K37: 0 | L37: 0 | M37: 2
A38: Khandelwal Krushi Kendra | B38: 4434413 | C38: LARVIN (T) WP75 20X500GR BAG IN | D38: 6005291 | E38: 39 | F38: 0 | G38: 0 | H38: 3 | I38: 0 | J38: 0 | K38: 0 | L38: 0 | M38: 36
A39: Khandelwal Krushi Kendra | B39: 4434413 | C39: LAUDIS SC630 10X57.5ML BOT IN | D39: 84470481 | E39: 0 | F39: 10 | G39: 0 | H39: 4 | I39: 0 | J39: 0 | K39: 0 | L39: 0 | M39: 6
A40: Khandelwal Krushi Kendra | B40: 4434413 | C40: LAUDIS SC630 8X115ML BOT IN | D40: 80491085 | E40: 0 | F40: 480 | G40: 0 | H40: 233 | I40: 0 | J40: 0 | K40: 0 | L40: 0 | M40: 247
A41: Khandelwal Krushi Kendra | B41: 4434413 | C41: MOVENTO ENERGY SC240 10X1L BOT IN | D41: 79556837 | E41: 30 | F41: 0 | G41: 0 | H41: 0 | I41: 0 | J41: 0 | K41: 0 | L41: 0 | M41: 30
A42: Khandelwal Krushi Kendra | B42: 4434413 | C42: MOVENTO ENERGY SC240 40X250ML BOT IN | D42: 79679505 | E42: 14 | F42: 0 | G42: 0 | H42: 10 | I42: 0 | J42: 0 | K42: 0 | L42: 0 | M42: 4
A43: Khandelwal Krushi Kendra | B43: 4434413 | C43: MOVENTO ENERGY SC240 50X100ML BOT IN | D43: 79722605 | E43: 7 | F43: 0 | G43: 0 | H43: 0 | I43: 0 | J43: 0 | K43: 0 | L43: 0 | M43: 7
A44: Khandelwal Krushi Kendra | B44: 4434413 | C44: NATIVO WG75 100X50GR BAG IN | D44: 80580061 | E44: 51 | F44: 0 | G44: 0 | H44: 5 | I44: 0 | J44: 0 | K44: 0 | L44: 0 | M44: 46
A45: Khandelwal Krushi Kendra | B45: 4434413 | C45: NATIVO WG75 40X250GR BAG IN | D45: 79237790 | E45: 29 | F45: 0 | G45: 0 | H45: 10 | I45: 0 | J45: 0 | K45: 0 | L45: 0 | M45: 19
A46: Khandelwal Krushi Kendra | B46: 4434413 | C46: NATIVO WG75 50X100GR BAG IN | D46: 79304102 | E46: 68 | F46: 50 | G46: 0 | H46: 27 | I46: 0 | J46: 0 | K46: 0 | L46: 0 | M46: 91
A47: Khandelwal Krushi Kendra | B47: 4434413 | C47: OBERON (T) SC240 20X500ML BOT IN | D47: 80026471 | E47: 13 | F47: 0 | G47: 0 | H47: 9 | I47: 0 | J47: 0 | K47: 0 | L47: 0 | M47: 4
A48: Khandelwal Krushi Kendra | B48: 4434413 | C48: OBERON (T) SC240 40X200ML BOT IN | D48: 79971362 | E48: 24 | F48: 0 | G48: 0 | H48: 3 | I48: 0 | J48: 0 | K48: 0 | L48: 0 | M48: 21
A49: Khandelwal Krushi Kendra | B49: 4434413 | C49: OBERON (T) SC240 50X100ML BOT IN | D49: 79998538 | E49: 20 | F49: 0 | G49: 0 | H49: 16 | I49: 0 | J49: 0 | K49: 0 | L49: 0 | M49: 4
A50: Khandelwal Krushi Kendra | B50: 4434413 | C50: PLANOFIX SL4 5 40X250ML BOT IN | D50: 3825128 | E50: 35 | F50: 200 | G50: 0 | H50: 6 | I50: 0 | J50: 0 | K50: 0 | L50: 0 | M50: 229
A51: Khandelwal Krushi Kendra | B51: 4434413 | C51: PLANOFIX SL4 5 50X100ML BOT IN | D51: 3825098 | E51: 37 | F51: 250 | G51: 0 | H51: 27 | I51: 0 | J51: 0 | K51: 0 | L51: 0 | M51: 260
A52: Khandelwal Krushi Kendra | B52: 4434413 | C52: REGENT (T) SC50 20X250ML BOT IN | D52: 5976951 | E52: 13 | F52: 100 | G52: 0 | H52: 46 | I52: 0 | J52: 0 | K52: 0 | L52: 0 | M52: 67
A53: Khandelwal Krushi Kendra | B53: 4434413 | C53: REGENT (T) SC50 20X500ML BOT IN | D53: 5987678 | E53: 12 | F53: 300 | G53: 0 | H53: 56 | I53: 0 | J53: 0 | K53: 0 | L53: 0 | M53: 256
A54: Khandelwal Krushi Kendra | B54: 4434413 | C54: SOLOMON OD300 20X500ML BOT IN | D54: 79987870 | E54: 0 | F54: 300 | G54: 0 | H54: 165 | I54: 0 | J54: 0 | K54: 0 | L54: 0 | M54: 135
A55: Khandelwal Krushi Kendra | B55: 4434413 | C55: SOLOMON OD300 40X250ML BOT IN | D55: 79706723 | E55: 42 | F55: 600 | G55: 0 | H55: 228 | I55: 0 | J55: 0 | K55: 0 | L55: 0 | M55: 414
A56: Khandelwal Krushi Kendra | B56: 4434413 | C56: SOLOMON OD300 50X100ML BOT IN | D56: 79641931 | E56: 29 | F56: 300 | G56: 0 | H56: 21 | I56: 0 | J56: 0 | K56: 0 | L56: 0 | M56: 308
A57: Khandelwal Krushi Kendra | B57: 4434413 | C57: WHIPSUPER (T) EC90 10X1L BOT IN | D57: 5972697 | E57: 7 | F57: 0 | G57: 0 | H57: 0 | I57: 0 | J57: 0 | K57: 0 | L57: 0 | M57: 7
A58: Khandelwal Krushi Kendra | B58: 4434413 | C58: WHIPSUPER (T) EC90 50X100ML BOT IN | D58: 5994151 | E58: 30 | F58: 0 | G58: 0 | H58: 25 | I58: 0 | J58: 0 | K58: 0 | L58: 0 | M58: 5
A59: Khandelwal Krushi Kendra | B59: 4434413 | C59: SURPASS 7517 BGII LOC 20X450GR BAG IN | D59: 80891601 | E59: 0 | F59: 400 | G59: 0 | H59: 315 | I59: 120 | J59: 0 | K59: 0 | L59: 0 | M59: 205
A60: Khandelwal Krushi Kendra | B60: 4434413 | C60: DECIS EC101-2 50X100ML BOX IN | D60: 6103692 | E60: 14 | F60: 0 | G60: 0 | H60: 0 | I60: 0 | J60: 0 | K60: 0 | L60: 0 | M60: 14
A61: Khandelwal Krushi Kendra | B61: 4434413 | C61: DECIS EC101-2 40X250ML BOT IN | D61: 3823281 | E61: 16 | F61: 0 | G61: 0 | H61: 0 | I61: 0 | J61: 0 | K61: 0 | L61: 0 | M61: 16
A62: Khandelwal Krushi Kendra | B62: 4434413 | C62: BUONOS SC430 40X250ML BOT IN | D62: 86224801 | E62: 34 | F62: 0 | G62: 0 | H62: 18 | I62: 0 | J62: 0 | K62: 0 | L62: 0 | M62: 16
A63: Khandelwal Krushi Kendra | B63: 4434413 | C63: BUONOS SC430 20X500ML BOT IN | D63: 86254468 | E63: 0 | F63: 20 | G63: 0 | H63: 0 | I63: 0 | J63: 0 | K63: 0 | L63: 0 | M63: 20
A64: Khandelwal Krushi Kendra | B64: 4434413 | C64: REGENT (T) SC50 10X1L BOT IN | D64: 5962667 | E64: 32 | F64: 250 | G64: 0 | H64: 37 | I64: 1 | J64: 0 | K64: 0 | L64: 0 | M64: 246
A65: Khandelwal Krushi Kendra | B65: 4434413 | C65: SURPASS FC 7149 BG2 (RIB) 20X475G BAG IN | D65: 86737310 | E65: 0 | F65: 100 | G65: 0 | H65: 116 | I65: 0 | J65: 0 | K65: 0 | L65: 0 | M65: -16
A66: GRANDTOTAL | E66: 3266 | F66: 9870 | G66: 0 | H66: 6238 | I66: 121 | J66: 0 | K66: 0 | L66: 0 | M66: 7019

Sheet OPG
A1: ADMIRE (T) WG70 150X30GR BOT IN | B1: =VLOOKUP(A1,'[2]Product Master Sheet'!$B$2:$F$1506,5,0) -> 13 | C1: 119
A2: ADMIRE (T) WG70 30X150GR BOT IN | B2: =VLOOKUP(A2,'[2]Product Master Sheet'!$B$2:$F$1506,5,0) -> 14 | C2: 23
A3: ADMIRE (T) WG70 60X75GR BOT IN | B3: =VLOOKUP(A3,'[2]Product Master Sheet'!$B$2:$F$1506,5,0) -> 15 | C3: 39
A4: ALIETTE WP80 20X500GR BAG IN | B4: =VLOOKUP(A4,'[2]Product Master Sheet'!$B$2:$F$1506,5,0) -> 34 | C4: 0
A5: AMBITION 10X1L BOT IN | B5: =VLOOKUP(A5,'[2]Product Master Sheet'!$B$2:$F$1506,5,0) -> 39 | C5: 175
A6: AMBITION 20X500ML BOT IN | B6: =VLOOKUP(A6,'[2]Product Master Sheet'!$B$2:$F$1506,5,0) -> 40 | C6: 296
A7: AMBITION 40X250ML BOT IN | B7: =VLOOKUP(A7,'[2]Product Master Sheet'!$B$2:$F$1506,5,0) -> 41 | C7: 143
A8: ANTRACOL (T) WP70 10X1KG BAG IN | B8: =VLOOKUP(A8,'[2]Product Master Sheet'!$B$2:$F$1506,5,0) -> 42 | C8: 10
A9: ANTRACOL (T) WP70 20X500GR BAG IN | B9: =VLOOKUP(A9,'[2]Product Master Sheet'!$B$2:$F$1506,5,0) -> 43 | C9: 10
A10: ANTRACOL (T) WP70 40X250GR BAG IN | B10: =VLOOKUP(A10,'[2]Product Master Sheet'!$B$2:$F$1506,5,0) -> 44 | C10: 155
A11: BELT EXPERT SC480 50X100ML BOT IN | B11: =VLOOKUP(A11,'[2]Product Master Sheet'!$B$2:$F$1506,5,0) -> 111 | C11: 10
A12: CONFIDOR (T) SL200 100X50ML BOT IN | B12: =VLOOKUP(A12,'[2]Product Master Sheet'!$B$2:$F$1506,5,0) -> 112 | C12: 29
A13: CONFIDOR (T) SL200 20X250ML BOT IN | B13: =VLOOKUP(A13,'[2]Product Master Sheet'!$B$2:$F$1506,5,0) -> 114 | C13: 75
A14: CONFIDOR (T) SL200 50X100ML BOT IN | B14: =VLOOKUP(A14,'[2]Product Master Sheet'!$B$2:$F$1506,5,0) -> 116 | C14: 35
A15: CONFIDOR SUPER (T) SC350 20X250ML BOT IN | B15: =VLOOKUP(A15,'[2]Product Master Sheet'!$B$2:$F$1506,5,0) -> 118 | C15: 53
A16: CONFIDOR SUPER (T) SC350 50X100ML BOT IN | B16: =VLOOKUP(A16,'[2]Product Master Sheet'!$B$2:$F$1506,5,0) -> 120 | C16: 12
A17: CONFIDOR SUPER (T) SC350 50X50ML BOT IN | B17: =VLOOKUP(A17,'[2]Product Master Sheet'!$B$2:$F$1506,5,0) -> 121 | C17: 12
A18: ETHREL SL39 50X100ML BOT IN | B18: =VLOOKUP(A18,'[2]Product Master Sheet'!$B$2:$F$1506,5,0) -> 138 | C18: 0
A19: FAME (T) SC480 10X(20X10ML) BOT IN | B19: =VLOOKUP(A19,'[2]Product Master Sheet'!$B$2:$F$1506,5,0) -> 144 | C19: 100
A20: FAME (T) SC480 40X50ML BOT IN | B20: =VLOOKUP(A20,'[2]Product Master Sheet'!$B$2:$F$1506,5,0) -> 146 | C20: 6
A21: FENOS QUICK SC150 40X250ML BOT IN | B21: =VLOOKUP(A21,'[2]Product Master Sheet'!$B$2:$F$1506,5,0) -> 151 | C21: 0
A22: FENOS QUICK SC150 50X100ML BOT IN | B22: =VLOOKUP(A22,'[2]Product Master Sheet'!$B$2:$F$1506,5,0) -> 152 | C22: 34
A23: FOOST WP50 24X500G BAG IN | B23: =VLOOKUP(A23,'[2]Product Master Sheet'!$B$2:$F$1506,5,0) -> 177 | C23: 17
A24: INFINITO SC687 5 20X500ML BOT IN | B24: =VLOOKUP(A24,'[2]Product Master Sheet'!$B$2:$F$1506,5,0) -> 195 | C24: 16
A25: INFINITO SC687 5 50X100ML BOT IN | B25: =VLOOKUP(A25,'[2]Product Master Sheet'!$B$2:$F$1506,5,0) -> 197 | C25: 6
A26: JUMP WG80 160X(10X2GR) BAG IN | B26: =VLOOKUP(A26,'[2]Product Master Sheet'!$B$2:$F$1506,5,0) -> 199 | C26: 1249
A27: JUMP WG80 80X40GR BAG IN | B27: =VLOOKUP(A27,'[2]Product Master Sheet'!$B$2:$F$1506,5,0) -> 202 | C27: 29
A28: LARVIN (T) WP75 20X500GR BAG IN | B28: =VLOOKUP(A28,'[2]Product Master Sheet'!$B$2:$F$1506,5,0) -> 206 | C28: 39
A29: LAUDIS SC630 10X57.5ML BOT IN | B29: =VLOOKUP(A29,'[2]Product Master Sheet'!$B$2:$F$1506,5,0) -> 210 | C29: 0
A30: LAUDIS SC630 8X115ML BOT IN | B30: =VLOOKUP(A30,'[2]Product Master Sheet'!$B$2:$F$1506,5,0) -> 212 | C30: 0
A31: MOVENTO ENERGY SC240 40X250ML BOT IN | B31: =VLOOKUP(A31,'[2]Product Master Sheet'!$B$2:$F$1506,5,0) -> 273 | C31: 14
A32: NATIVO WG75 100X50GR BAG IN | B32: =VLOOKUP(A32,'[2]Product Master Sheet'!$B$2:$F$1506,5,0) -> 289 | C32: 51
A33: NATIVO WG75 40X250GR BAG IN | B33: =VLOOKUP(A33,'[2]Product Master Sheet'!$B$2:$F$1506,5,0) -> 293 | C33: 29
A34: NATIVO WG75 50X100GR BAG IN | B34: =VLOOKUP(A34,'[2]Product Master Sheet'!$B$2:$F$1506,5,0) -> 294 | C34: 68
A35: OBERON (T) SC240 20X500ML BOT IN | B35: =VLOOKUP(A35,'[2]Product Master Sheet'!$B$2:$F$1506,5,0) -> 297 | C35: 13
A36: OBERON (T) SC240 40X200ML BOT IN | B36: =VLOOKUP(A36,'[2]Product Master Sheet'!$B$2:$F$1506,5,0) -> 299 | C36: 24
A37: OBERON (T) SC240 50X100ML BOT IN | B37: =VLOOKUP(A37,'[2]Product Master Sheet'!$B$2:$F$1506,5,0) -> 300 | C37: 20
A38: PLANOFIX SL4 5 40X250ML BOT IN | B38: =VLOOKUP(A38,'[2]Product Master Sheet'!$B$2:$F$1506,5,0) -> 306 | C38: 35
A39: PLANOFIX SL4 5 50X100ML BOT IN | B39: =VLOOKUP(A39,'[2]Product Master Sheet'!$B$2:$F$1506,5,0) -> 307 | C39: 37
A40: REGENT (T) SC50 20X250ML BOT IN | B40: =VLOOKUP(A40,'[2]Product Master Sheet'!$B$2:$F$1506,5,0) -> 325 | C40: 13
A41: REGENT (T) SC50 20X500ML BOT IN | B41: =VLOOKUP(A41,'[2]Product Master Sheet'!$B$2:$F$1506,5,0) -> 326 | C41: 12
A42: SOLOMON OD300 20X500ML BOT IN | B42: =VLOOKUP(A42,'[2]Product Master Sheet'!$B$2:$F$1506,5,0) -> 366 | C42: 0
A43: SOLOMON OD300 40X250ML BOT IN | B43: =VLOOKUP(A43,'[2]Product Master Sheet'!$B$2:$F$1506,5,0) -> 368 | C43: 42
A44: SOLOMON OD300 50X100ML BOT IN | B44: =VLOOKUP(A44,'[2]Product Master Sheet'!$B$2:$F$1506,5,0) -> 370 | C44: 29
A45: WHIPSUPER (T) EC90 50X100ML BOT IN | B45: =VLOOKUP(A45,'[2]Product Master Sheet'!$B$2:$F$1506,5,0) -> 406 | C45: 30
A46: SURPASS 7517 BGII LOC 20X450GR BAG IN | B46: =VLOOKUP(A46,'[2]Product Master Sheet'!$B$2:$F$1506,5,0) -> 384 | C46: 0
A47: BUONOS SC430 40X250ML BOT IN | B47: =VLOOKUP(A47,'[2]Product Master Sheet'!$B$2:$F$1506,5,0) -> 1397 | C47: 34
A48: BUONOS SC430 20X500ML BOT IN | B48: =VLOOKUP(A48,'[2]Product Master Sheet'!$B$2:$F$1506,5,0) -> 1396 | C48: 0
A49: REGENT (T) SC50 10X1L BOT IN | B49: =VLOOKUP(A49,'[2]Product Master Sheet'!$B$2:$F$1506,5,0) -> 324 | C49: 32
A50: SURPASS FC 7149 BG2 (RIB) 20X475G BAG IN | B50: =VLOOKUP(A50,'[2]Product Master Sheet'!$B$2:$F$1506,5,0) -> 1839 | C50: 0
A51: DECIS EC101-2 40X250ML BOT IN | B51: =VLOOKUP(A51,'[2]Product Master Sheet'!$B$2:$F$1506,5,0) -> 925 | C51: 16
A52: DECIS EC101-2 50X100ML BOX IN | B52: =VLOOKUP(A52,'[2]Product Master Sheet'!$B$2:$F$1506,5,0) -> 924 | C52: 14
A53: FAME (T) SC480 20X100ML BOT IN | B53: =VLOOKUP(A53,'[2]Product Master Sheet'!$B$2:$F$1506,5,0) -> 145 | C53: 15
A54: LARVIN (T) WP75 20X250GR BAG IN | B54: =VLOOKUP(A54,'[2]Product Master Sheet'!$B$2:$F$1506,5,0) -> 205 | C54: 2
A55: LARVIN (T) WP75 40X100GR BAG IN | B55: =VLOOKUP(A55,'[2]Product Master Sheet'!$B$2:$F$1506,5,0) -> 207 | C55: 0
A56: MOVENTO ENERGY SC240 10X1L BOT IN | B56: =VLOOKUP(A56,'[2]Product Master Sheet'!$B$2:$F$1506,5,0) -> 271 | C56: 30
A57: MOVENTO ENERGY SC240 50X100ML BOT IN | B57: =VLOOKUP(A57,'[2]Product Master Sheet'!$B$2:$F$1506,5,0) -> 274 | C57: 7
A58: WHIPSUPER (T) EC90 10X1L BOT IN | B58: =VLOOKUP(A58,'[2]Product Master Sheet'!$B$2:$F$1506,5,0) -> 403 | C58: 7

Sheet Reco
B1: Zylem Report -01-Apr-2021 TO 31-Jul-2021 | K1: Dealer Report -01-Apr-2021 TO 31-Jul-2021 | T1: Difference (+/-)
A3: DEALER CODE | B3: Opening Qty | C3: Purchase Qty | D3: Purchase Return Qty | E3: Sales Qty | F3: Sales Return Qty | G3: Transfer Qty | H3: Consignment Qty | I3: Adjustment Qty | J3: CLSG | K3: Opening Qty | L3: Purchase Qty | M3: Purchase Return Qty | N3: Sales Qty | O3: Sales Return Qty | P3: Transfer Qty | Q3: Consignment Qty | R3: Adjustment Qty | S3: CLSG | T3: Opening Stock Qty | U3: Purchase Qty | V3: Purchase Return Qty | W3: Sales Qty | X3: Sales Return Qty | Y3: Transfer Qty | Z3: Consignment Qty | AA3: Adjustments Qty | AB3: CLSG | AC3: Remark
A4: ADMIRE (T) WG70 150X30GR BOT IN | B4: 119 | C4: 0 | D4: 0 | E4: 12 | F4: 0 | G4: 0 | H4: 0 | I4: 0 | J4: 107 | K4: 119 | L4: 0 | M4: 0 | N4: 12 | O4: 0 | P4: 0 | Q4: 0 | R4: 0 | S4: 107 | T4: 0 | U4: 0 | V4: 0 | W4: 0 | X4: 0 | Y4: 0 | Z4: 0 | AA4: 0 | AB4: 0 | AC4: Ok
A5: ADMIRE (T) WG70 30X150GR BOT IN | B5: 23 | C5: 60 | D5: 0 | E5: 30 | F5: 0 | G5: 0 | H5: 0 | I5: 0 | J5: 53 | K5: 23 | L5: 60 | M5: 0 | N5: 30 | O5: 0 | P5: 0 | Q5: 0 | R5: 0 | S5: 53 | T5: 0 | U5: 0 | V5: 0 | W5: 0 | X5: 0 | Y5: 0 | Z5: 0 | AA5: 0 | AB5: 0 | AC5: Ok
A6: ADMIRE (T) WG70 60X75GR BOT IN | B6: 39 | C6: 120 | D6: 0 | E6: 30 | F6: 0 | G6: 0 | H6: 0 | I6: 0 | J6: 129 | K6: 39 | L6: 120 | M6: 0 | N6: 30 | O6: 0 | P6: 0 | Q6: 0 | R6: 0 | S6: 129 | T6: 0 | U6: 0 | V6: 0 | W6: 0 | X6: 0 | Y6: 0 | Z6: 0 | AA6: 0 | AB6: 0 | AC6: Ok
A7: AMBITION 10X1L BOT IN | B7: 175 | C7: 0 | D7: 0 | E7: 8 | F7: 0 | G7: 0 | H7: 0 | I7: 0 | J7: 167 | K7: 175 | L7: 0 | M7: 0 | N7: 8 | O7: 0 | P7: 0 | Q7: 0 | R7: 0 | S7: 167 | T7: 0 | U7: 0 | V7: 0 | W7: 0 | X7: 0 | Y7: 0 | Z7: 0 | AA7: 0 | AB7: 0 | AC7: Ok
A8: AMBITION 20X500ML BOT IN | B8: 296 | C8: 0 | D8: 0 | E8: 27 | F8: 0 | G8: 0 | H8: 0 | I8: 0 | J8: 269 | K8: 296 | L8: 0 | M8: 0 | N8: 27 | O8: 0 | P8: 0 | Q8: 0 | R8: 0 | S8: 269 | T8: 0 | U8: 0 | V8: 0 | W8: 0 | X8: 0 | Y8: 0 | Z8: 0 | AA8: 0 | AB8: 0 | AC8: Ok
A9: AMBITION 40X250ML BOT IN | B9: 143 | C9: 0 | D9: 0 | E9: 21 | F9: 0 | G9: 0 | H9: 0 | I9: 0 | J9: 122 | K9: 143 | L9: 0 | M9: 0 | N9: 21 | O9: 0 | P9: 0 | Q9: 0 | R9: 0 | S9: 122 | T9: 0 | U9: 0 | V9: 0 | W9: 0 | X9: 0 | Y9: 0 | Z9: 0 | AA9: 0 | AB9: 0 | AC9: Ok
A10: ANTRACOL (T) WP70 10X1KG BAG IN | B10: 10 | C10: 200 | D10: 0 | E10: 80 | F10: 0 | G10: 0 | H10: 0 | I10: 0 | J10: 130 | K10: 10 | L10: 200 | M10: 0 | N10: 80 | O10: 0 | P10: 0 | Q10: 0 | R10: 0 | S10: 130 | T10: 0 | U10: 0 | V10: 0 | W10: 0 | X10: 0 | Y10: 0 | Z10: 0 | AA10: 0 | AB10: 0 | AC10: Ok
A11: ANTRACOL (T) WP70 20X500GR BAG IN | B11: 10 | C11: 500 | D11: 0 | E11: 212 | F11: 0 | G11: 0 | H11: 0 | I11: 0 | J11: 298 | K11: 10 | L11: 500 | M11: 0 | N11: 212 | O11: 0 | P11: 0 | Q11: 0 | R11: 0 | S11: 298 | T11: 0 | U11: 0 | V11: 0 | W11: 0 | X11: 0 | Y11: 0 | Z11: 0 | AA11: 0 | AB11: 0 | AC11: Ok
A12: ANTRACOL (T) WP70 40X250GR BAG IN | B12: 155 | C12: 80 | D12: 0 | E12: 107 | F12: 0 | G12: 0 | H12: 0 | I12: 0 | J12: 128 | K12: 155 | L12: 80 | M12: 0 | N12: 107 | O12: 0 | P12: 0 | Q12: 0 | R12: 0 | S12: 128 | T12: 0 | U12: 0 | V12: 0 | W12: 0 | X12: 0 | Y12: 0 | Z12: 0 | AA12: 0 | AB12: 0 | AC12: Ok
A13: BELT EXPERT SC480 50X100ML BOT IN | B13: 10 | C13: 50 | D13: 0 | E13: 5 | F13: 0 | G13: 0 | H13: 0 | I13: 0 | J13: 55 | K13: 10 | L13: 50 | M13: 0 | N13: 5 | O13: 0 | P13: 0 | Q13: 0 | R13: 0 | S13: 55 | T13: 0 | U13: 0 | V13: 0 | W13: 0 | X13: 0 | Y13: 0 | Z13: 0 | AA13: 0 | AB13: 0 | AC13: Ok
A14: CONFIDOR (T) SL200 100X50ML BOT IN | B14: 29 | C14: 1000 | D14: 0 | E14: 624 | F14: 0 | G14: 0 | H14: 0 | I14: 0 | J14: 405 | K14: 29 | L14: 1000 | M14: 0 | N14: 624 | O14: 0 | P14: 0 | Q14: 0 | R14: 0 | S14: 405 | T14: 0 | U14: 0 | V14: 0 | W14: 0 | X14: 0 | Y14: 0 | Z14: 0 | AA14: 0 | AB14: 0 | AC14: Ok
A15: CONFIDOR (T) SL200 20X250ML BOT IN | B15: 75 | C15: 500 | D15: 0 | E15: 475 | F15: 0 | G15: 0 | H15: 0 | I15: 0 | J15: 100 | K15: 75 | L15: 500 | M15: 0 | N15: 475 | O15: 0 | P15: 0 | Q15: 0 | R15: 0 | S15: 100 | T15: 0 | U15: 0 | V15: 0 | W15: 0 | X15: 0 | Y15: 0 | Z15: 0 | AA15: 0 | AB15: 0 | AC15: Ok
A16: CONFIDOR (T) SL200 50X100ML BOT IN | B16: 35 | C16: 1250 | D16: 0 | E16: 1062 | F16: 0 | G16: 0 | H16: 0 | I16: 0 | J16: 223 | K16: 35 | L16: 1250 | M16: 0 | N16: 1062 | O16: 0 | P16: 0 | Q16: 0 | R16: 0 | S16: 223 | T16: 0 | U16: 0 | V16: 0 | W16: 0 | X16: 0 | Y16: 0 | Z16: 0 | AA16: 0 | AB16: 0 | AC16: Ok
A17: CONFIDOR SUPER (T) SC350 20X250ML BOT IN | B17: 53 | C17: 400 | D17: 0 | E17: 267 | F17: 0 | G17: 0 | H17: 0 | I17: 0 | J17: 186 | K17: 53 | L17: 400 | M17: 0 | N17: 267 | O17: 0 | P17: 0 | Q17: 0 | R17: 0 | S17: 186 | T17: 0 | U17: 0 | V17: 0 | W17: 0 | X17: 0 | Y17: 0 | Z17: 0 | AA17: 0 | AB17: 0 | AC17: Ok
A18: CONFIDOR SUPER (T) SC350 50X100ML BOT IN | B18: 12 | C18: 1000 | D18: 0 | E18: 687 | F18: 0 | G18: 0 | H18: 0 | I18: 0 | J18: 325 | K18: 12 | L18: 1000 | M18: 0 | N18: 687 | O18: 0 | P18: 0 | Q18: 0 | R18: 0 | S18: 325 | T18: 0 | U18: 0 | V18: 0 | W18: 0 | X18: 0 | Y18: 0 | Z18: 0 | AA18: 0 | AB18: 0 | AC18: Ok
A19: CONFIDOR SUPER (T) SC350 50X50ML BOT IN | B19: 12 | C19: 650 | D19: 0 | E19: 603 | F19: 0 | G19: 0 | H19: 0 | I19: 0 | J19: 59 | K19: 12 | L19: 650 | M19: 0 | N19: 603 | O19: 0 | P19: 0 | Q19: 0 | R19: 0 | S19: 59 | T19: 0 | U19: 0 | V19: 0 | W19: 0 | X19: 0 | Y19: 0 | Z19: 0 | AA19: 0 | AB19: 0 | AC19: Ok
A20: FAME (T) SC480 10X(20X10ML) BOT IN | B20: 100 | C20: 0 | D20: 0 | E20: 8 | F20: 0 | G20: 0 | H20: 0 | I20: 0 | J20: 92 | K20: 100 | L20: 0 | M20: 0 | N20: 8 | O20: 0 | P20: 0 | Q20: 0 | R20: 0 | S20: 92 | T20: 0 | U20: 0 | V20: 0 | W20: 0 | X20: 0 | Y20: 0 | Z20: 0 | AA20: 0 | AB20: 0 | AC20: Ok
A21: FAME (T) SC480 20X100ML BOT IN | B21: 15 | C21: 0 | D21: 0 | E21: 0 | F21: 0 | G21: 0 | H21: 0 | I21: 0 | J21: 15 | K21: 15 | L21: 0 | M21: 0 | N21: 0 | O21: 0 | P21: 0 | Q21: 0 | R21: 0 | S21: 15 | T21: 0 | U21: 0 | V21: 0 | W21: 0 | X21: 0 | Y21: 0 | Z21: 0 | AA21: 0 | AB21: 0 | AC21: Ok
A22: FAME (T) SC480 40X50ML BOT IN | B22: 6 | C22: 0 | D22: 0 | E22: 1 | F22: 0 | G22: 0 | H22: 0 | I22: 0 | J22: 5 | K22: 6 | L22: 0 | M22: 0 | N22: 1 | O22: 0 | P22: 0 | Q22: 0 | R22: 0 | S22: 5 | T22: 0 | U22: 0 | V22: 0 | W22: 0 | X22: 0 | Y22: 0 | Z22: 0 | AA22: 0 | AB22: 0 | AC22: Ok
A23: FENOS QUICK SC150 40X250ML BOT IN | B23: 0 | C23: 80 | D23: 0 | E23: 2 | F23: 0 | G23: 0 | H23: 0 | I23: 0 | J23: 78 | K23: 0 | L23: 80 | M23: 0 | N23: 2 | O23: 0 | P23: 0 | Q23: 0 | R23: 0 | S23: 78 | T23: 0 | U23: 0 | V23: 0 | W23: 0 | X23: 0 | Y23: 0 | Z23: 0 | AA23: 0 | AB23: 0 | AC23: Ok
A24: FENOS QUICK SC150 50X100ML BOT IN | B24: 34 | C24: 300 | D24: 0 | E24: 9 | F24: 0 | G24: 0 | H24: 0 | I24: 0 | J24: 325 | K24: 34 | L24: 300 | M24: 0 | N24: 9 | O24: 0 | P24: 0 | Q24: 0 | R24: 0 | S24: 325 | T24: 0 | U24: 0 | V24: 0 | W24: 0 | X24: 0 | Y24: 0 | Z24: 0 | AA24: 0 | AB24: 0 | AC24: Ok
A25: FOOST WP50 24X500G BAG IN | B25: 17 | C25: 240 | D25: 0 | E25: 93 | F25: 0 | G25: 0 | H25: 0 | I25: 0 | J25: 164 | K25: 17 | L25: 240 | M25: 0 | N25: 93 | O25: 0 | P25: 0 | Q25: 0 | R25: 0 | S25: 164 | T25: 0 | U25: 0 | V25: 0 | W25: 0 | X25: 0 | Y25: 0 | Z25: 0 | AA25: 0 | AB25: 0 | AC25: Ok
A26: INFINITO SC687 5 20X500ML BOT IN | B26: 16 | C26: 0 | D26: 0 | E26: 1 | F26: 0 | G26: 0 | H26: 0 | I26: 0 | J26: 15 | K26: 16 | L26: 0 | M26: 0 | N26: 1 | O26: 0 | P26: 0 | Q26: 0 | R26: 0 | S26: 15 | T26: 0 | U26: 0 | V26: 0 | W26: 0 | X26: 0 | Y26: 0 | Z26: 0 | AA26: 0 | AB26: 0 | AC26: Ok
A27: INFINITO SC687 5 50X100ML BOT IN | B27: 6 | C27: 0 | D27: 0 | E27: 1 | F27: 0 | G27: 0 | H27: 0 | I27: 0 | J27: 5 | K27: 6 | L27: 0 | M27: 0 | N27: 1 | O27: 0 | P27: 0 | Q27: 0 | R27: 0 | S27: 5 | T27: 0 | U27: 0 | V27: 0 | W27: 0 | X27: 0 | Y27: 0 | Z27: 0 | AA27: 0 | AB27: 0 | AC27: Ok
A28: JUMP WG80 160X(10X2GR) BAG IN | B28: 1249 | C28: 0 | D28: 0 | E28: 476 | F28: 0 | G28: 0 | H28: 0 | I28: 0 | J28: 773 | K28: 1249 | L28: 0 | M28: 0 | N28: 476 | O28: 0 | P28: 0 | Q28: 0 | R28: 0 | S28: 773 | T28: 0 | U28: 0 | V28: 0 | W28: 0 | X28: 0 | Y28: 0 | Z28: 0 | AA28: 0 | AB28: 0 | AC28: Ok
A29: JUMP WG80 80X40GR BAG IN | B29: 29 | C29: 80 | D29: 0 | E29: 10 | F29: 0 | G29: 0 | H29: 0 | I29: 0 | J29: 99 | K29: 29 | L29: 80 | M29: 0 | N29: 10 | O29: 0 | P29: 0 | Q29: 0 | R29: 0 | S29: 99 | T29: 0 | U29: 0 | V29: 0 | W29: 0 | X29: 0 | Y29: 0 | Z29: 0 | AA29: 0 | AB29: 0 | AC29: Ok
A30: LARVIN (T) WP75 20X250GR BAG IN | B30: 2 | C30: 0 | D30: 0 | E30: 0 | F30: 0 | G30: 0 | H30: 0 | I30: 0 | J30: 2 | K30: 2 | L30: 0 | M30: 0 | N30: 0 | O30: 0 | P30: 0 | Q30: 0 | R30: 0 | S30: 2 | T30: 0 | U30: 0 | V30: 0 | W30: 0 | X30: 0 | Y30: 0 | Z30: 0 | AA30: 0 | AB30: 0 | AC30: Ok
A31: LARVIN (T) WP75 20X500GR BAG IN | B31: 39 | C31: 0 | D31: 0 | E31: 3 | F31: 0 | G31: 0 | H31: 0 | I31: 0 | J31: 36 | K31: 39 | L31: 0 | M31: 0 | N31: 3 | O31: 0 | P31: 0 | Q31: 0 | R31: 0 | S31: 36 | T31: 0 | U31: 0 | V31: 0 | W31: 0 | X31: 0 | Y31: 0 | Z31: 0 | AA31: 0 | AB31: 0 | AC31: Ok
A32: LAUDIS SC630 10X57.5ML BOT IN | B32: 0 | C32: 10 | D32: 0 | E32: 4 | F32: 0 | G32: 0 | H32: 0 | I32: 0 | J32: 6 | K32: 0 | L32: 10 | M32: 0 | N32: 4 | O32: 0 | P32: 0 | Q32: 0 | R32: 0 | S32: 6 | T32: 0 | U32: 0 | V32: 0 | W32: 0 | X32: 0 | Y32: 0 | Z32: 0 | AA32: 0 | AB32: 0 | AC32: Ok
A33: LAUDIS SC630 8X115ML BOT IN | B33: 0 | C33: 480 | D33: 0 | E33: 233 | F33: 0 | G33: 0 | H33: 0 | I33: 0 | J33: 247 | K33: 0 | L33: 480 | M33: 0 | N33: 233 | O33: 0 | P33: 0 | Q33: 0 | R33: 0 | S33: 247 | T33: 0 | U33: 0 | V33: 0 | W33: 0 | X33: 0 | Y33: 0 | Z33: 0 | AA33: 0 | AB33: 0 | AC33: Ok
A34: MOVENTO ENERGY SC240 10X1L BOT IN | B34: 30 | C34: 0 | D34: 0 | E34: 0 | F34: 0 | G34: 0 | H34: 0 | I34: 0 | J34: 30 | K34: 30 | L34: 0 | M34: 0 | N34: 0 | O34: 0 | P34: 0 | Q34: 0 | R34: 0 | S34: 30 | T34: 0 | U34: 0 | V34: 0 | W34: 0 | X34: 0 | Y34: 0 | Z34: 0 | AA34: 0 | AB34: 0 | AC34: Ok
A35: MOVENTO ENERGY SC240 40X250ML BOT IN | B35: 14 | C35: 0 | D35: 0 | E35: 10 | F35: 0 | G35: 0 | H35: 0 | I35: 0 | J35: 4 | K35: 14 | L35: 0 | M35: 0 | N35: 10 | O35: 0 | P35: 0 | Q35: 0 | R35: 0 | S35: 4 | T35: 0 | U35: 0 | V35: 0 | W35: 0 | X35: 0 | Y35: 0 | Z35: 0 | AA35: 0 | AB35: 0 | AC35: Ok
A36: MOVENTO ENERGY SC240 50X100ML BOT IN | B36: 7 | C36: 0 | D36: 0 | E36: 0 | F36: 0 | G36: 0 | H36: 0 | I36: 0 | J36: 7 | K36: 7 | L36: 0 | M36: 0 | N36: 0 | O36: 0 | P36: 0 | Q36: 0 | R36: 0 | S36: 7 | T36: 0 | U36: 0 | V36: 0 | W36: 0 | X36: 0 | Y36: 0 | Z36: 0 | AA36: 0 | AB36: 0 | AC36: Ok
A37: NATIVO WG75 100X50GR BAG IN | B37: 51 | C37: 0 | D37: 0 | E37: 5 | F37: 0 | G37: 0 | H37: 0 | I37: 0 | J37: 46 | K37: 51 | L37: 0 | M37: 0 | N37: 5 | O37: 0 | P37: 0 | Q37: 0 | R37: 0 | S37: 46 | T37: 0 | U37: 0 | V37: 0 | W37: 0 | X37: 0 | Y37: 0 | Z37: 0 | AA37: 0 | AB37: 0 | AC37: Ok
A38: NATIVO WG75 40X250GR BAG IN | B38: 29 | C38: 0 | D38: 0 | E38: 10 | F38: 0 | G38: 0 | H38: 0 | I38: 0 | J38: 19 | K38: 29 | L38: 0 | M38: 0 | N38: 10 | O38: 0 | P38: 0 | Q38: 0 | R38: 0 | S38: 19 | T38: 0 | U38: 0 | V38: 0 | W38: 0 | X38: 0 | Y38: 0 | Z38: 0 | AA38: 0 | AB38: 0 | AC38: Ok
A39: NATIVO WG75 50X100GR BAG IN | B39: 68 | C39: 50 | D39: 0 | E39: 27 | F39: 0 | G39: 0 | H39: 0 | I39: 0 | J39: 91 | K39: 68 | L39: 50 | M39: 0 | N39: 27 | O39: 0 | P39: 0 | Q39: 0 | R39: 0 | S39: 91 | T39: 0 | U39: 0 | V39: 0 | W39: 0 | X39: 0 | Y39: 0 | Z39: 0 | AA39: 0 | AB39: 0 | AC39: Ok
A40: OBERON (T) SC240 20X500ML BOT IN | B40: 13 | C40: 0 | D40: 0 | E40: 9 | F40: 0 | G40: 0 | H40: 0 | I40: 0 | J40: 4 | K40: 13 | L40: 0 | M40: 0 | N40: 9 | O40: 0 | P40: 0 | Q40: 0 | R40: 0 | S40: 4 | T40: 0 | U40: 0 | V40: 0 | W40: 0 | X40: 0 | Y40: 0 | Z40: 0 | AA40: 0 | AB40: 0 | AC40: Ok
A41: OBERON (T) SC240 40X200ML BOT IN | B41: 24 | C41: 0 | D41: 0 | E41: 3 | F41: 0 | G41: 0 | H41: 0 | I41: 0 | J41: 21 | K41: 24 | L41: 0 | M41: 0 | N41: 3 | O41: 0 | P41: 0 | Q41: 0 | R41: 0 | S41: 21 | T41: 0 | U41: 0 | V41: 0 | W41: 0 | X41: 0 | Y41: 0 | Z41: 0 | AA41: 0 | AB41: 0 | AC41: Ok
A42: OBERON (T) SC240 50X100ML BOT IN | B42: 20 | C42: 0 | D42: 0 | E42: 16 | F42: 0 | G42: 0 | H42: 0 | I42: 0 | J42: 4 | K42: 20 | L42: 0 | M42: 0 | N42: 16 | O42: 0 | P42: 0 | Q42: 0 | R42: 0 | S42: 4 | T42: 0 | U42: 0 | V42: 0 | W42: 0 | X42: 0 | Y42: 0 | Z42: 0 | AA42: 0 | AB42: 0 | AC42: Ok
A43: PLANOFIX SL4 5 40X250ML BOT IN | B43: 35 | C43: 200 | D43: 0 | E43: 6 | F43: 0 | G43: 0 | H43: 0 | I43: 0 | J43: 229 | K43: 35 | L43: 200 | M43: 0 | N43: 6 | O43: 0 | P43: 0 | Q43: 0 | R43: 0 | S43: 229 | T43: 0 | U43: 0 | V43: 0 | W43: 0 | X43: 0 | Y43: 0 | Z43: 0 | AA43: 0 | AB43: 0 | AC43: Ok
A44: PLANOFIX SL4 5 50X100ML BOT IN | B44: 37 | C44: 250 | D44: 0 | E44: 27 | F44: 0 | G44: 0 | H44: 0 | I44: 0 | J44: 260 | K44: 37 | L44: 250 | M44: 0 | N44: 27 | O44: 0 | P44: 0 | Q44: 0 | R44: 0 | S44: 260 | T44: 0 | U44: 0 | V44: 0 | W44: 0 | X44: 0 | Y44: 0 | Z44: 0 | AA44: 0 | AB44: 0 | AC44: Ok
A45: REGENT (T) SC50 20X250ML BOT IN | B45: 13 | C45: 100 | D45: 0 | E45: 46 | F45: 0 | G45: 0 | H45: 0 | I45: 0 | J45: 67 | K45: 13 | L45: 100 | M45: 0 | N45: 46 | O45: 0 | P45: 0 | Q45: 0 | R45: 0 | S45: 67 | T45: 0 | U45: 0 | V45: 0 | W45: 0 | X45: 0 | Y45: 0 | Z45: 0 | AA45: 0 | AB45: 0 | AC45: Ok
A46: REGENT (T) SC50 20X500ML BOT IN | B46: 12 | C46: 300 | D46: 0 | E46: 56 | F46: 0 | G46: 0 | H46: 0 | I46: 0 | J46: 256 | K46: 12 | L46: 300 | M46: 0 | N46: 56 | O46: 0 | P46: 0 | Q46: 0 | R46: 0 | S46: 256 | T46: 0 | U46: 0 | V46: 0 | W46: 0 | X46: 0 | Y46: 0 | Z46: 0 | AA46: 0 | AB46: 0 | AC46: Ok
A47: SOLOMON OD300 20X500ML BOT IN | B47: 0 | C47: 300 | D47: 0 | E47: 165 | F47: 0 | G47: 0 | H47: 0 | I47: 0 | J47: 135 | K47: 0 | L47: 300 | M47: 0 | N47: 165 | O47: 0 | P47: 0 | Q47: 0 | R47: 0 | S47: 135 | T47: 0 | U47: 0 | V47: 0 | W47: 0 | X47: 0 | Y47: 0 | Z47: 0 | AA47: 0 | AB47: 0 | AC47: Ok
A48: SOLOMON OD300 40X250ML BOT IN | B48: 42 | C48: 600 | D48: 0 | E48: 228 | F48: 0 | G48: 0 | H48: 0 | I48: 0 | J48: 414 | K48: 42 | L48: 600 | M48: 0 | N48: 228 | O48: 0 | P48: 0 | Q48: 0 | R48: 0 | S48: 414 | T48: 0 | U48: 0 | V48: 0 | W48: 0 | X48: 0 | Y48: 0 | Z48: 0 | AA48: 0 | AB48: 0 | AC48: Ok
A49: SOLOMON OD300 50X100ML BOT IN | B49: 29 | C49: 300 | D49: 0 | E49: 21 | F49: 0 | G49: 0 | H49: 0 | I49: 0 | J49: 308 | K49: 29 | L49: 300 | M49: 0 | N49: 21 | O49: 0 | P49: 0 | Q49: 0 | R49: 0 | S49: 308 | T49: 0 | U49: 0 | V49: 0 | W49: 0 | X49: 0 | Y49: 0 | Z49: 0 | AA49: 0 | AB49: 0 | AC49: Ok
A50: WHIPSUPER (T) EC90 10X1L BOT IN | B50: 7 | C50: 0 | D50: 0 | E50: 0 | F50: 0 | G50: 0 | H50: 0 | I50: 0 | J50: 7 | K50: 7 | L50: 0 | M50: 0 | N50: 0 | O50: 0 | P50: 0 | Q50: 0 | R50: 0 | S50: 7 | T50: 0 | U50: 0 | V50: 0 | W50: 0 | X50: 0 | Y50: 0 | Z50: 0 | AA50: 0 | AB50: 0 | AC50: Ok
A51: WHIPSUPER (T) EC90 50X100ML BOT IN | B51: 30 | C51: 0 | D51: 0 | E51: 25 | F51: 0 | G51: 0 | H51: 0 | I51: 0 | J51: 5 | K51: 30 | L51: 0 | M51: 0 | N51: 25 | O51: 0 | P51: 0 | Q51: 0 | R51: 0 | S51: 5 | T51: 0 | U51: 0 | V51: 0 | W51: 0 | X51: 0 | Y51: 0 | Z51: 0 | AA51: 0 | AB51: 0 | AC51: Ok
A52: SURPASS 7517 BGII LOC 20X450GR BAG IN | B52: 0 | C52: 400 | D52: 0 | E52: 315 | F52: 120 | G52: 0 | H52: 0 | I52: 0 | J52: 205 | K52: 0 | L52: 400 | M52: 0 | N52: 195 | O52: 0 | P52: 0 | Q52: 0 | R52: 0 | S52: 205 | T52: 0 | U52: 0 | V52: 0 | W52: 120 | X52: 120 | Y52: 0 | Z52: 0 | AA52: 0 | AB52: 0 | AC52: Ok
A53: DECIS EC101-2 50X100ML BOX IN | B53: 14 | C53: 0 | D53: 0 | E53: 0 | F53: 0 | G53: 0 | H53: 0 | I53: 0 | J53: 14 | K53: 14 | L53: 0 | M53: 0 | N53: 0 | O53: 0 | P53: 0 | Q53: 0 | R53: 0 | S53: 14 | T53: 0 | U53: 0 | V53: 0 | W53: 0 | X53: 0 | Y53: 0 | Z53: 0 | AA53: 0 | AB53: 0 | AC53: Ok
A54: DECIS EC101-2 40X250ML BOT IN | B54: 16 | C54: 0 | D54: 0 | E54: 0 | F54: 0 | G54: 0 | H54: 0 | I54: 0 | J54: 16 | K54: 16 | L54: 0 | M54: 0 | N54: 0 | O54: 0 | P54: 0 | Q54: 0 | R54: 0 | S54: 16 | T54: 0 | U54: 0 | V54: 0 | W54: 0 | X54: 0 | Y54: 0 | Z54: 0 | AA54: 0 | AB54: 0 | AC54: Ok
A55: BUONOS SC430 40X250ML BOT IN | B55: 34 | C55: 0 | D55: 0 | E55: 18 | F55: 0 | G55: 0 | H55: 0 | I55: 0 | J55: 16 | K55: 34 | L55: 0 | M55: 0 | N55: 18 | O55: 0 | P55: 0 | Q55: 0 | R55: 0 | S55: 16 | T55: 0 | U55: 0 | V55: 0 | W55: 0 | X55: 0 | Y55: 0 | Z55: 0 | AA55: 0 | AB55: 0 | AC55: Ok
A56: BUONOS SC430 20X500ML BOT IN | B56: 0 | C56: 20 | D56: 0 | E56: 0 | F56: 0 | G56: 0 | H56: 0 | I56: 0 | J56: 20 | K56: 0 | L56: 20 | M56: 0 | N56: 0 | O56: 0 | P56: 0 | Q56: 0 | R56: 0 | S56: 20 | T56: 0 | U56: 0 | V56: 0 | W56: 0 | X56: 0 | Y56: 0 | Z56: 0 | AA56: 0 | AB56: 0 | AC56: Ok
A57: REGENT (T) SC50 10X1L BOT IN | B57: 32 | C57: 250 | D57: 0 | E57: 37 | F57: 1 | G57: 0 | H57: 0 | I57: 0 | J57: 246 | K57: 32 | L57: 250 | M57: 0 | N57: 36 | O57: 0 | P57: 0 | Q57: 0 | R57: 0 | S57: 246 | T57: 0 | U57: 0 | V57: 0 | W57: 1 | X57: 1 | Y57: 0 | Z57: 0 | AA57: 0 | AB57: 0 | AC57: Ok
A58: LARVIN (T) WP75 40X100GR BAG IN | B58: 0 | C58: 0 | D58: 0 | E58: 0 | F58: 0 | G58: 0 | H58: 0 | I58: 0 | J58: 0 | K58: 0 | L58: 0 | M58: 0 | N58: 0 | O58: 0 | P58: 0 | Q58: 0 | R58: 0 | S58: 0 | T58: 0 | U58: 0 | V58: 0 | W58: 0 | X58: 0 | Y58: 0 | Z58: 0 | AA58: 0 | AB58: 0 | AC58: Ok
A59: Total | B59: =SUM(B4:B58) -> 3266 | C59: =SUM(C4:C58) -> 9770 | D59: =SUM(D4:D58) -> 0 | E59: =SUM(E4:E58) -> 6115 | F59: =SUM(F4:F58) -> 121 | G59: =SUM(G4:G58) -> 0 | H59: =SUM(H4:H58) -> 0 | I59: =SUM(I4:I58) -> 0 | J59: =SUM(J4:J58) -> 7042 | K59: =SUM(K4:K58) -> 3266 | L59: =SUM(L4:L58) -> 9770 | M59: =SUM(M4:M58) -> 0 | N59: =SUM(N4:N58) -> 5994 | O59: =SUM(O4:O58) -> 0 | P59: =SUM(P4:P58) -> 0 | Q59: =SUM(Q4:Q58) -> 0 | R59: =SUM(R4:R58) -> 0 | S59: =SUM(S4:S58) -> 7042 | T59: =SUM(T4:T58) -> 0 | U59: =SUM(U4:U58) -> 0 | V59: =SUM(V4:V58) -> 0 | W59: =SUM(W4:W58) -> 121 | X59: =SUM(X4:X58) -> 121 | Y59: =SUM(Y4:Y58) -> 0 | Z59: =SUM(Z4:Z58) -> 0 | AA59: =SUM(AA4:AA58) -> 0 | AB59: =SUM(AB4:AB58) -> 0
